Service Delivery Area(T),Service Delivery Team(T),CostC,ExpenditureGroup(T),Account(T),Supplier Name(T),Trans Date,Amount
Care & Support,Integrated Disabilities,JSAA,Employees,Agency Supply Costs,OUTCOMES UK LTD,17/04/2012,1247.4
Care & Support,Integrated Disabilities,JSAA,Employees,Agency Supply Costs,OUTCOMES UK LTD,17/04/2012,604.8
Care & Support,Integrated Disabilities,JSAA,Employees,Agency Supply Costs,OUTCOMES UK LTD,25/04/2012,1285.2
Care & Support,Integrated Disabilities,KNAA,Third Party Payments,Agency Services,CRUCKTON HALL SCHOOL,17/04/2012,32710
Care & Support,Integrated Disabilities,KNAA,Third Party Payments,Agency Services,CRUCKTON HALL SCHOOL,17/04/2012,32710
Care & Support,Integrated Disabilities,KNAA,Third Party Payments,Agency Services,CRUCKTON HALL SCHOOL,17/04/2012,32710
Care & Support,Integrated Disabilities,KNAA,Third Party Payments,Agency Services,OVERLEY HALL SCHOOL,17/04/2012,32808
Care & Support,Integrated Disabilities,KNAA,Third Party Payments,Agency Services,YOUNG OPTIONS COLLEGE LTD,04/04/2012,31236.51
Care & Support,Integrated Disabilities,KNAA,Third Party Payments,Agency Services,NEW OPTIONS (3) LTD,04/04/2012,63170.55
Care & Support,Integrated Disabilities,KNAA,Third Party Payments,Agency Services,YOUNG OPTIONS COLLEGE LTD,04/04/2012,22264.67
Care & Support,Integrated Disabilities,KNAA,Third Party Payments,Agency Services,YOUNG OPTIONS COLLEGE LTD,04/04/2012,27733.33
Care & Support,Integrated Disabilities,KNAA,Third Party Payments,Agency Services,YOUNG OPTIONS COLLEGE LTD,04/04/2012,26975.23
Care & Support,Integrated Disabilities,KNAA,Third Party Payments,Agency Services,CRUCKTON HALL SCHOOL,17/04/2012,32710
Care & Support,Integrated Disabilities,KNAA,Third Party Payments,Agency Services,CRUCKTON HALL SCHOOL,17/04/2012,29439
Care & Support,Integrated Disabilities,KNAA,Third Party Payments,Agency Services,CRUCKTON HALL SCHOOL,17/04/2012,32034
Care & Support,Integrated Disabilities,KNAA,Third Party Payments,Agency Services,CRUCKTON HALL SCHOOL,17/04/2012,32034
Care & Support,Integrated Disabilities,KNAA,Third Party Payments,Agency Services,CRUCKTON HALL SCHOOL,17/04/2012,30925.72
Care & Support,Integrated Disabilities,KNAA,Third Party Payments,Agency Services,CRUCKTON HALL SCHOOL,17/04/2012,30925.72
Care & Support,"Joint Commissioning - Mental Health, Learning Disbaility & Substance Misuse",HASB,Supplies & Services,Consultants Fees,TELFORD & WREKIN PCT,30/04/2012,1250
Care & Support,"Joint Commissioning - Mental Health, Learning Disbaility & Substance Misuse",HHAB,Employees,Training Expenses,OXFORD BROOKES ENTERPRISES LTD,04/04/2012,650
Care & Support,"Joint Commissioning - Mental Health, Learning Disbaility & Substance Misuse",HHAB,Supplies & Services,Consultants Fees,TELFORD & WREKIN PCT,04/04/2012,6875
Care & Support,"Joint Commissioning - Mental Health, Learning Disbaility & Substance Misuse",HJAA,Supplies & Services,Other Grants (Expenses),A4U,30/04/2012,13559.76
Care & Support,"Joint Commissioning - Mental Health, Learning Disbaility & Substance Misuse",HJAA,Supplies & Services,Other Grants (Expenses),SHROPSHIRE PARTNERS IN CARE LTD,30/04/2012,19271.42
Care & Support,"Joint Commissioning - Mental Health, Learning Disbaility & Substance Misuse",HJAA,Supplies & Services,Other Grants (Expenses),INDEPENDENT LIVING PARTNERSHIP LTD,30/04/2012,14553.6
Care & Support,"Joint Commissioning - Mental Health, Learning Disbaility & Substance Misuse",HJAD,Employees,Training Expenses,TELFORD & WREKIN PCT,24/04/2012,15200
Care & Support,"Joint Commissioning - Mental Health, Learning Disbaility & Substance Misuse",HJAD,Employees,Training Expenses,TELFORD & WREKIN PCT,03/04/2012,-15200
Care & Support,"Joint Commissioning - Mental Health, Learning Disbaility & Substance Misuse",HJAD,Supplies & Services,Other Grants (Expenses),D H Homecare Limited,30/04/2012,637.98
Care & Support,Learning Disabilities,HLAK,Supplies & Services,Other Grants (Expenses),TELFORD & WREKIN PCT,25/04/2012,52160
Care & Support,Learning Disabilities,HLAK,Supplies & Services,Other Grants (Expenses),TELFORD & WREKIN PCT,25/04/2012,24621.66
Care & Support,Learning Disabilities,HLAL,Premises-Related Expenditure,General Rents,BOURNVILLE VILLAGE TRUST,03/04/2012,-11818.01
Care & Support,Learning Disabilities,HLBA,Premises-Related Expenditure,Electricity,WEST MERCIA SUPPLIES Catalogue Supplies ,23/04/2012,766.65
Care & Support,Learning Disabilities,HLBA,Premises-Related Expenditure,Electricity,WEST MERCIA SUPPLIES Catalogue Supplies ,23/04/2012,553.51
Care & Support,Learning Disabilities,HLBB,Supplies & Services,Laundry & Towel Hire,PHS ALL CLEAR,26/04/2012,697.97
Care & Support,Learning Disabilities,HLCK,Premises-Related Expenditure,General Rents,BOURNVILLE VILLAGE TRUST,20/04/2012,3300
Care & Support,Learning Disabilities,HLCK,Supplies & Services,Respite Care,LEONARD CHESHIRE DISABILITY,25/04/2012,23213.37
Care & Support,Learning Disabilities,HLCK,Supplies & Services,Respite Care,LEONARD CHESHIRE DISABILITY,25/04/2012,22996.54
Care & Support,Learning Disabilities,HLDB,Supplies & Services,Laundry & Towel Hire,PHS GROUP LTD,20/04/2012,643.5
Care & Support,Learning Disabilities,HLDC,Capital Financing Costs,Leased Equipment,PHS GROUP LTD,20/04/2012,774.8
Care & Support,Learning Disabilities,HLDC,Supplies & Services,Laundry & Towel Hire,PHS GROUP LTD,20/04/2012,731.8
Care & Support,Learning Disabilities,HLDD,Premises-Related Expenditure,Electricity,WEST MERCIA SUPPLIES Catalogue Supplies ,11/04/2012,763.9
Care & Support,Learning Disabilities,HLDD,Premises-Related Expenditure,Gas,WEST MERCIA SUPPLIES Catalogue Supplies ,20/04/2012,551.85
Care & Support,Learning Disabilities,HLDD,Premises-Related Expenditure,Gas,WEST MERCIA SUPPLIES Catalogue Supplies ,20/04/2012,558.95
Care & Support,Learning Disabilities,HLEB,Premises-Related Expenditure,Electricity,WEST MERCIA SUPPLIES Catalogue Supplies ,25/04/2012,926.6
Care & Support,Learning Disabilities,HLEB,Premises-Related Expenditure,Gas,WEST MERCIA SUPPLIES Catalogue Supplies ,25/04/2012,935.2
Care & Support,Learning Disabilities,HLEB,Premises-Related Expenditure,Trade Refuse,Waste Recycling Limited,25/04/2012,532.74
Care & Support,Learning Disabilities,HLEC,Capital Financing Costs,Leased Equipment,LEX AUTOLEASE LTD,03/04/2012,524.29
Care & Support,Learning Disabilities,HLEC,Premises-Related Expenditure,Gas,WEST MERCIA SUPPLIES Catalogue Supplies ,25/04/2012,569.07
Care & Support,Learning Disabilities,HLED,Premises-Related Expenditure,General Rents,THE WREKIN HOUSING TRUST,18/04/2012,4733.2
Care & Support,Learning Disabilities,HLEE,Premises-Related Expenditure,General Rents,THE WREKIN HOUSING TRUST,20/04/2012,1328.52
Care & Support,Learning Disabilities,HLEE,Premises-Related Expenditure,General Rents,BAKER PROPERTY SERVICES,27/04/2012,540
Care & Support,Learning Disabilities,HLEE,Premises-Related Expenditure,General Rents,THE WREKIN HOUSING TRUST,13/04/2012,10393.86
Care & Support,Learning Disabilities,HOCL,Transport-Related Expenditure,Travelling Expenses General,CENTRAL TAXIS LTD SHREWSBURY,13/04/2012,1234.75
Care & Support,Learning Disabilities,HOCL,Transport-Related Expenditure,Travelling Expenses General,CENTRAL TAXIS LTD SHREWSBURY,17/04/2012,1496.5
Care & Support,Mental Health & Substance Misuse,HMAA,Employees,Staff Training,ILLY SYSTEMS LTD,27/04/2012,1158.8
Care & Support,Mental Health & Substance Misuse,HMAJ,Premises-Related Expenditure,Electricity,WEST MERCIA SUPPLIES Catalogue Supplies ,17/04/2012,-1893.38
Care & Support,Mental Health & Substance Misuse,HMAJ,Supplies & Services,Other Grants (Expenses),SHROPSHIRE COMMUNITY HEALTH NHS TRUST,03/04/2012,48412
Care & Support,Mental Health & Substance Misuse,HMBB,Premises-Related Expenditure,Electricity,WEST MERCIA SUPPLIES Catalogue Supplies ,26/04/2012,915.86
Care & Support,Mental Health & Substance Misuse,HMBB,Premises-Related Expenditure,Gas,WEST MERCIA SUPPLIES Catalogue Supplies ,13/04/2012,746.45
Care & Support,Mental Health & Substance Misuse,HMBB,Premises-Related Expenditure,Water Rates,SEVERN TRENT WATER LTD,26/04/2012,519.59
Care & Support,Mental Health & Substance Misuse,HMBG,Supplies & Services,Grants To Voluntary Organis,TELFORD & WREKIN PCT,11/04/2012,7500
Care & Support,Mental Health & Substance Misuse,HMBG,Supplies & Services,Other Grants (Expenses),POHWER,11/04/2012,1547.2
Care & Support,Mental Health & Substance Misuse,HMBK,Third Party Payments,Homecare Expenditure,OCCUPATIONAL SOLUTIONS,26/04/2012,677.4
Care & Support,Mental Health & Substance Misuse,HMBK,Third Party Payments,Homecare Expenditure,OCCUPATIONAL SOLUTIONS,26/04/2012,508.05
Care & Support,Mental Health & Substance Misuse,HMBK,Third Party Payments,Homecare Expenditure,OCCUPATIONAL SOLUTIONS,26/04/2012,677.4
Care & Support,Mental Health & Substance Misuse,HMBK,Third Party Payments,Homecare Expenditure,OCCUPATIONAL SOLUTIONS,26/04/2012,508.05
Care & Support,Mental Health & Substance Misuse,HMBK,Third Party Payments,Homecare Expenditure,OCCUPATIONAL SOLUTIONS,26/04/2012,677.4
Care & Support,Mental Health & Substance Misuse,HMBL,Premises-Related Expenditure,Electricity,WEST MERCIA SUPPLIES Catalogue Supplies ,24/04/2012,633.19
Care & Support,Mental Health & Substance Misuse,HMBL,Premises-Related Expenditure,Gas,WEST MERCIA SUPPLIES Catalogue Supplies ,05/04/2012,673.12
Care & Support,Mental Health & Substance Misuse,HPAB,Employees,Training Expenses,ILLY SYSTEMS LTD,24/04/2012,879.6
Care & Support,Mental Health & Substance Misuse,HPAB,Supplies & Services,Computer Software (Maint),OLM SYSTEMS LTD,25/04/2012,72192.55
Care & Support,Older People & Physical Disability,HOAC,Supplies & Services,Purchased Meals,APETITO LTD,20/04/2012,1744.42
Care & Support,Older People & Physical Disability,HOAC,Supplies & Services,Purchased Meals,APETITO LTD,20/04/2012,1595.62
Care & Support,Older People & Physical Disability,HOAC,Supplies & Services,Purchased Meals,APETITO LTD,20/04/2012,1593.14
Care & Support,Older People & Physical Disability,HOAC,Supplies & Services,Purchased Meals,APETITO LTD,20/04/2012,1479.06
Care & Support,Older People & Physical Disability,HOAC,Supplies & Services,Purchased Meals,APETITO LTD,20/04/2012,1592.1
Care & Support,Older People & Physical Disability,HOAG,Supplies & Services,Aids & Appliances,RNIB SERVICES LIMITED,12/04/2012,579.6
Care & Support,Older People & Physical Disability,HOAP,Supplies & Services,Equipment - Repair,HANDICARE ACCESSIBILITY LIMITED,18/04/2012,5230.16
Care & Support,Older People & Physical Disability,HOAP,Supplies & Services,Equipment - Repair,HANDICARE ACCESSIBILITY LIMITED,18/04/2012,704.25
Care & Support,Older People & Physical Disability,HOAP,Supplies & Services,Aids & Appliances,MIDEQUIP LTD,20/04/2012,803
Care & Support,Older People & Physical Disability,HOAP,Supplies & Services,Aids & Appliances,MANGAR INTERNATIONAL LTD,24/04/2012,950
Care & Support,Older People & Physical Disability,HOAP,Supplies & Services,Aids & Appliances,MANGAR INTERNATIONAL LTD,20/04/2012,4150
Care & Support,Older People & Physical Disability,HOAP,Supplies & Services,Aids & Appliances,PRISM MEDICAL WESTHOLME DIVISION,18/04/2012,538
Care & Support,Older People & Physical Disability,HOAZ,Third Party Payments,Homecare Expenditure,AMG NURSING & CARE SERVICES,13/04/2012,963.7
Care & Support,Older People & Physical Disability,HOBK,Supplies & Services,Respite Care,COVERAGE CARE SERVICES LTD,18/04/2012,5090.11
Care & Support,Older People & Physical Disability,HOBK,Third Party Payments,Health Funded Services,COVERAGE CARE SERVICES LTD,18/04/2012,33631.41
Care & Support,Older People & Physical Disability,HOBK,Third Party Payments,Nursing Expenditure,COVERAGE CARE SERVICES LTD,18/04/2012,55537.48
Care & Support,Older People & Physical Disability,HOBN,Third Party Payments,Homecare Expenditure,GRAY HEALTHCARE,30/04/2012,4620.72
Care & Support,Older People & Physical Disability,HOBN,Third Party Payments,Homecare Expenditure,CAREWATCH (MID SHROPSHIRE),16/04/2012,2778.12
Care & Support,Older People & Physical Disability,HOBN,Third Party Payments,Homecare Expenditure,ADVANTAGE HEALTHCARE GROUP,16/04/2012,738.37
Care & Support,Older People & Physical Disability,HOBN,Third Party Payments,Homecare Expenditure,BETHPHAGE,16/04/2012,6298.4
Care & Support,Older People & Physical Disability,HOBN,Third Party Payments,Homecare Expenditure,D H Homecare Limited,16/04/2012,50547.39
Care & Support,Older People & Physical Disability,HOBN,Third Party Payments,Homecare Expenditure,D H Homecare Limited,16/04/2012,2983.86
Care & Support,Older People & Physical Disability,HOBN,Third Party Payments,Homecare Expenditure,HEALTH CARE SUPPORT SERVICES,16/04/2012,4771.78
Care & Support,Older People & Physical Disability,HOBN,Third Party Payments,Homecare Expenditure,SUPREME HOME CARE,16/04/2012,17406.81
Care & Support,Older People & Physical Disability,HOBN,Third Party Payments,Homecare Expenditure,WELLINGTON & DISTRICT COTTAGE HOSPITAL,16/04/2012,14299.51
Care & Support,Older People & Physical Disability,HOBN,Third Party Payments,Homecare Expenditure,THE CARE BUREAU,16/04/2012,1191.86
Care & Support,Older People & Physical Disability,HOBN,Third Party Payments,Homecare Expenditure,LEONARD CHESHIRE DISABILITY,16/04/2012,1344.12
Care & Support,Older People & Physical Disability,HOBN,Third Party Payments,Homecare Expenditure,NEWPORT COTTAGE CARE CENTRE,16/04/2012,3340.34
Care & Support,Older People & Physical Disability,HOBN,Third Party Payments,Homecare Expenditure,PARADIGM HEALTH & SOCIAL CARE LTD,16/04/2012,814
Care & Support,Older People & Physical Disability,HOBN,Third Party Payments,Homecare Expenditure,PEACE OF MIND HOMECARE LIMITED,16/04/2012,1514.12
Care & Support,Older People & Physical Disability,HOBN,Third Party Payments,Homecare Expenditure,PRIORITY CARE (SHROPSHIRE) LTD,16/04/2012,36460.81
Care & Support,Older People & Physical Disability,HOBN,Third Party Payments,Homecare Expenditure,TENDER CARE,16/04/2012,21666.44
Care & Support,Older People & Physical Disability,HOBN,Third Party Payments,Homecare Expenditure,WE ARE THE CARE COMPANY LTD,16/04/2012,4640.51
Care & Support,Older People & Physical Disability,HOBN,Third Party Payments,Homecare Expenditure,WREKIN CARE CO-OPERATIVE LIMITED,16/04/2012,7471.36
Care & Support,Older People & Physical Disability,HOBN,Third Party Payments,Homecare Expenditure,NEXT GENERATION HEALTHCARE,16/04/2012,1808.75
Care & Support,Older People & Physical Disability,HOBN,Third Party Payments,Homecare Expenditure,NEXT GENERATION HEALTHCARE,16/04/2012,2866.99
Care & Support,Older People & Physical Disability,HOBR,Third Party Payments,Homecare Expenditure,COVERAGE CARE SERVICES LTD,11/04/2012,-2218.18
Care & Support,Older People & Physical Disability,HOCC,Third Party Payments,Nursing Expenditure,SOUTHERN CROSS HEALTHCARE GROUP,18/04/2012,24681.31
Care & Support,Older People & Physical Disability,HOCJ,Third Party Payments,Residential Expenditure,MORRIS CARE,26/04/2012,13991.25
Care & Support,Older People & Physical Disability,HOCM,Employees,Agency Supply Costs,MEDICONNECT RECRUITMENT LTD,23/04/2012,1008.88
Care & Support,Older People & Physical Disability,HOCM,Employees,Agency Supply Costs,MEDICONNECT RECRUITMENT LTD,23/04/2012,984.44
Care & Support,Older People & Physical Disability,HOCM,Employees,Agency Supply Costs,MEDICONNECT RECRUITMENT LTD,17/04/2012,1148.34
Care & Support,Older People & Physical Disability,HOCM,Employees,Agency Supply Costs,MEDICONNECT RECRUITMENT LTD,17/04/2012,577.26
Care & Support,Older People & Physical Disability,HOCM,Third Party Payments,Nursing Expenditure,MORRIS CARE,26/04/2012,73710
Care & Support,Older People & Physical Disability,HOCN,Supplies & Services,Equipment - Purchase,BROSCH DIRECT LTD,13/04/2012,572.5
Care & Support,Older People & Physical Disability,HOCR,Supplies & Services,Other Expenses,IRONBRIDGE GORGE TRADING CO LTD,11/04/2012,2000
Corporate Core,Delivery Planning & Management,MDAB,Employees,Professional Subs,SCOPED SOLUTIONS LTD,13/04/2012,600
Corporate Core,Organisational Improvement,MHAB,Employees,Recruitment Interview,SOLACE ENTERPRISES LIMITED,12/04/2012,1550
Corporate Core,Organisational Improvement,NOAH,Supplies & Services,Consultants Fees,NORTHGATEARINSO UK LTD,16/04/2012,1044.48
Corporate Core,Organisational Improvement,NOAH,Supplies & Services,Consultants Fees,EVERSHEDS LLP,16/04/2012,4822.85
Corporate Core,Organisational Improvement,NOAH,Supplies & Services,Consultants Fees,WRAGGE & CO,23/04/2012,1568.5
Corporate Core,Organisational Improvement,NOAT,Employees,Course Fees,ILX Group Plc,17/04/2012,2500
Corporate Core,Organisational Improvement,NOAT,Employees,Course Fees,ILX Group Plc,17/04/2012,500
Corporate Core,Organisational Improvement,NOAT,Employees,Course Fees,DARTINGTON HALL TRUST,19/04/2012,2400
Corporate Core,Organisational Improvement,NOAT,Employees,Course Fees,DARTINGTON HALL TRUST,19/04/2012,12600
Corporate Core,Organisational Improvement,NOAT,Employees,Training Exp's (Facilitators),CHANGE POINT LTD,25/04/2012,667
Corporate Core,Organisational Improvement,NOAT,Employees,Training Exp's (Facilitators),BLITHFIELD SAFETY TRAINING,17/04/2012,1022
Corporate Core,Organisational Improvement,NOAT,Employees,Training Exp's (Facilitators),SHROPSHIRE PARTNERS IN CARE LTD,17/04/2012,981
Corporate Core,Organisational Improvement,NOAT,Employees,Training Exp's (Facilitators),REDACTED PERSONAL INFORMATION,03/04/2012,700
Corporate Core,Organisational Improvement,NOAT,Employees,Cont Prof Development,CITY & GUILDS,13/04/2012,500
Corporate Core,Organisational Improvement,NOAT,Employees,Other Training,HI-IMPACT LIMITED,13/04/2012,500
Corporate Core,Organisational Improvement,NOAT,Supplies & Services,Sub Contractors,SHROPSHIRE PARTNERS IN CARE LTD,19/04/2012,19384.75
Corporate Core,Organisational Improvement,NOAT,Supplies & Services,Sub Contractors,SHROPSHIRE PARTNERS IN CARE LTD,04/04/2012,28276.82
Corporate Core,Organisational Improvement,NOAT,Supplies & Services,Sub Contractors,SHROPSHIRE PARTNERS IN CARE LTD,04/04/2012,46546.55
Corporate Core,Organisational Improvement,NOAT,Supplies & Services,Sub Contractors,CARE WORKFORCE DEV PARTNERSHIP,13/04/2012,872.5
Corporate Core,Organisational Improvement,NOAT,Supplies & Services,Sub Contractors,CARE WORKFORCE DEV PARTNERSHIP,13/04/2012,7500
"Customer Services, Leisure & Libraries",Arts & Culture,LCAA,Supplies & Services,Culture zone services -grant funded,Z3/Studio Design+ Realisation,11/04/2012,9970
"Customer Services, Leisure & Libraries",Arts & Culture,LCAD,Premises-Related Expenditure,Electricity,WEST MERCIA SUPPLIES Catalogue Supplies ,24/04/2012,693.81
"Customer Services, Leisure & Libraries",Arts & Culture,LCAD,Premises-Related Expenditure,Electricity,WEST MERCIA SUPPLIES Catalogue Supplies ,24/04/2012,2339.82
"Customer Services, Leisure & Libraries",Arts & Culture,LCAD,Premises-Related Expenditure,Electricity,WEST MERCIA SUPPLIES Catalogue Supplies ,03/04/2012,684.76
"Customer Services, Leisure & Libraries",Arts & Culture,LCAD,Premises-Related Expenditure,Electricity,WEST MERCIA SUPPLIES Catalogue Supplies ,03/04/2012,2670.13
"Customer Services, Leisure & Libraries",Arts & Culture,LCAD,Premises-Related Expenditure,Gas,WEST MERCIA SUPPLIES Catalogue Supplies ,24/04/2012,1516.7
"Customer Services, Leisure & Libraries",Arts & Culture,LCAD,Premises-Related Expenditure,Gas,WEST MERCIA SUPPLIES Catalogue Supplies ,03/04/2012,2383.44
"Customer Services, Leisure & Libraries",Arts & Culture,LCAD,Supplies & Services,Aids & Appliances,SSE AUDIO GROUP LTD,10/04/2012,1324.97
"Customer Services, Leisure & Libraries",Arts & Culture,LCAD,Supplies & Services,Replacement Audio Kit - part exchange refund awaited.,SSE AUDIO GROUP LTD,27/04/2012,3600
"Customer Services, Leisure & Libraries",Arts & Culture,LCAD,Supplies & Services,Computer Hardware (Maint),ARTIFAX SOFTWARE LTD,18/04/2012,1381.2
"Customer Services, Leisure & Libraries",Arts & Culture,LCAD,Supplies & Services,Advertising,GET SMART,18/04/2012,2532
"Customer Services, Leisure & Libraries",Arts & Culture,LCAD,Supplies & Services,Performing Rights Fees,THE PERFORMING RIGHT SOCIETY,18/04/2012,1250.65
"Customer Services, Leisure & Libraries",Arts & Culture,LCAE,Supplies & Services,Artistes Fees - Recouped by Ticket sales,Angela Browne Ltd,27/04/2012,1500
"Customer Services, Leisure & Libraries",Arts & Culture,LCAE,Supplies & Services,Artistes Fees - Recouped by Ticket sales,Staffordshire Reels On Wheels,18/04/2012,761.04
"Customer Services, Leisure & Libraries",Arts & Culture,LCAE,Supplies & Services,Artistes Fees - Recouped by Ticket sales,The Bootleg Sixties LLP,13/04/2012,1569.86
"Customer Services, Leisure & Libraries",Arts & Culture,LCAE,Supplies & Services,Artistes Fees - Recouped by Ticket sales,Brian Shaw Concerts,25/04/2012,2500
"Customer Services, Leisure & Libraries",Arts & Culture,LCAE,Supplies & Services,Artistes Fees - Recouped by Ticket sales,WIM WIGT PRODUCTIONS LTD,13/04/2012,1334.12
"Customer Services, Leisure & Libraries",Arts & Culture,LCAE,Supplies & Services,Artistes Fees - Recouped by Ticket sales,VIENNA FESTIVAL BALLET,27/04/2012,2860.31
"Customer Services, Leisure & Libraries",Arts & Culture,LCAF,Supplies & Services,Artistes Fees - Recouped by Ticket sales,Blonde Sheep Events,04/04/2012,2924.19
"Customer Services, Leisure & Libraries",Arts & Culture,LCAH,Supplies & Services,Artistes Fees - Recouped by Ticket sales,SHROPSHIRE COUNCIL,19/04/2012,929.6
"Customer Services, Leisure & Libraries",Arts & Culture,LCAH,Supplies & Services,Artistes Fees - Recouped by Ticket sales,SHROPSHIRE COUNCIL,19/04/2012,2000
"Customer Services, Leisure & Libraries",Arts & Culture,LCAN,Supplies & Services,Wet Resale Provision,MOLSON COORS BREWING COMPANY UK LTD,16/04/2012,1103.2
"Customer Services, Leisure & Libraries",Communications & Marketing,MMAB,Supplies & Services,Printing - Other,Leaflet Distribution Services Ltd,05/04/2012,4467.05
"Customer Services, Leisure & Libraries",Communications & Marketing,MMAD,Employees,Recruitment Advertising,TSL EDUCATION LIMITED,25/04/2012,720
"Customer Services, Leisure & Libraries",Communications & Marketing,MMAD,Employees,Recruitment Advertising,THE MIDLAND NEWS ASSOCIATION LTD,10/04/2012,642.42
"Customer Services, Leisure & Libraries",Communications & Marketing,MMAD,Employees,Recruitment Advertising,THE MIDLAND NEWS ASSOCIATION LTD,18/04/2012,1294.34
"Customer Services, Leisure & Libraries",Communications & Marketing,MMAD,Employees,Recruitment Advertising,TSL EDUCATION LIMITED,10/04/2012,720
"Customer Services, Leisure & Libraries",Communications & Marketing,MMAD,Employees,Recruitment Advertising,TSL EDUCATION LIMITED,05/04/2012,810
"Customer Services, Leisure & Libraries",Communications & Marketing,MMAD,Employees,Recruitment Advertising,TSL EDUCATION LIMITED,16/04/2012,720
"Customer Services, Leisure & Libraries",Communications & Marketing,MMAD,Employees,Recruitment Advertising,TSL EDUCATION LIMITED,11/04/2012,800
"Customer Services, Leisure & Libraries",Communications & Marketing,MMAD,Employees,Recruitment Advertising,TSL EDUCATION LIMITED,11/04/2012,1260
"Customer Services, Leisure & Libraries",Communications & Marketing,MMAD,Employees,Recruitment Advertising,TSL EDUCATION LIMITED,11/04/2012,800
"Customer Services, Leisure & Libraries",Communications & Marketing,MMAD,Employees,Recruitment Advertising,THE MIDLAND NEWS ASSOCIATION LTD,24/04/2012,1751.4
"Customer Services, Leisure & Libraries",Communications & Marketing,MMAD,Supplies & Services,Advertising,THE MIDLAND NEWS ASSOCIATION LTD,10/04/2012,577.49
"Customer Services, Leisure & Libraries",Communications & Marketing,MMAD,Supplies & Services,Advertising,ORION MEDIA,04/04/2012,757.35
"Customer Services, Leisure & Libraries",Communications & Marketing,MMAD,Supplies & Services,Advertising,THE MIDLAND NEWS ASSOCIATION LTD,05/04/2012,636.66
"Customer Services, Leisure & Libraries",Communications & Marketing,MMAD,Supplies & Services,Advertising,THE MIDLAND NEWS ASSOCIATION LTD,05/04/2012,522
"Customer Services, Leisure & Libraries",Communications & Marketing,MMAD,Supplies & Services,Advertising,THE MIDLAND NEWS ASSOCIATION LTD,16/04/2012,549.99
"Customer Services, Leisure & Libraries",Communications & Marketing,MMAD,Supplies & Services,Advertising,REED BUSINESS INFORMATION LTD,16/04/2012,796
"Customer Services, Leisure & Libraries",Communications & Marketing,MMAD,Supplies & Services,Advertising,REED BUSINESS INFORMATION LTD,16/04/2012,500
"Customer Services, Leisure & Libraries",Communications & Marketing,MMAD,Supplies & Services,Advertising,REED BUSINESS INFORMATION LTD,16/04/2012,914.16
"Customer Services, Leisure & Libraries",Communications & Marketing,MMAD,Supplies & Services,Advertising,REED BUSINESS INFORMATION LTD,19/04/2012,621
"Customer Services, Leisure & Libraries",Communications & Marketing,MMAD,Supplies & Services,Advertising,ORION MEDIA,16/04/2012,850
"Customer Services, Leisure & Libraries",Communications & Marketing,MMAD,Supplies & Services,Advertising,THE MIDLAND NEWS ASSOCIATION LTD,19/04/2012,577.49
"Customer Services, Leisure & Libraries",Leisure Facilities & Services,GTAB,Premises-Related Expenditure,Electricity,WEST MERCIA SUPPLIES Catalogue Supplies ,25/04/2012,3913.35
"Customer Services, Leisure & Libraries",Leisure Facilities & Services,GTAB,Premises-Related Expenditure,Non Domestic Rates,CYNGOR GWYNEDD COUNCIL,27/04/2012,1563
"Customer Services, Leisure & Libraries",Leisure Facilities & Services,GTAB,Premises-Related Expenditure,Trade Refuse,CYNGOR GWYNEDD COUNCIL,25/04/2012,1444
"Customer Services, Leisure & Libraries",Leisure Facilities & Services,GTAB,Transport-Related Expenditure,Fuel,WD PUGH & SONS,20/04/2012,1048.51
"Customer Services, Leisure & Libraries",Leisure Facilities & Services,GTAB,Transport-Related Expenditure,Travelling Expenses General,SHROPSHIRE COUNCIL,26/04/2012,5131
"Customer Services, Leisure & Libraries",Leisure Facilities & Services,GTAB,Supplies & Services,Provisions,BSF TRADING AS 3663,25/04/2012,632.76
"Customer Services, Leisure & Libraries",Leisure Facilities & Services,GTAB,Supplies & Services,Provisions,BSF TRADING AS 3663,25/04/2012,697.92
"Customer Services, Leisure & Libraries",Leisure Facilities & Services,GTAB,Supplies & Services,Provisions,BSF TRADING AS 3663,20/04/2012,506.53
"Customer Services, Leisure & Libraries",Leisure Facilities & Services,GTAB,Supplies & Services,Provisions,BSF TRADING AS 3663,20/04/2012,557.52
"Customer Services, Leisure & Libraries",Leisure Facilities & Services,GTAB,Supplies & Services,Provisions,WOODWARD FOODSERVICE LTD,20/04/2012,605.63
"Customer Services, Leisure & Libraries",Leisure Facilities & Services,GTAB,Supplies & Services,Provisions,WOODWARD FOODSERVICE LTD,20/04/2012,532.71
"Customer Services, Leisure & Libraries",Leisure Facilities & Services,GTAB,Supplies & Services,Instructors Fees,CHRIS HUGHES MULTI ACTIVITY SERVICES LTD,05/04/2012,1172.15
"Customer Services, Leisure & Libraries",Leisure Facilities & Services,GTAB,Supplies & Services,Instructors Fees,BACH VENTURES LTD,05/04/2012,510
"Customer Services, Leisure & Libraries",Leisure Facilities & Services,LEAC,Premises-Related Expenditure,Gas,BRITISH GAS BUSINESS,03/04/2012,3065.09
"Customer Services, Leisure & Libraries",Leisure Facilities & Services,LEAD,Premises-Related Expenditure,Clean Mats & Toilet Requisites,PRINCIPAL HYGIENE SYSTEMS,26/04/2012,518.8
"Customer Services, Leisure & Libraries",Leisure Facilities & Services,LEAD,Premises-Related Expenditure,Contract Cleaning,CLEANIT CLEANING SERVICES,05/04/2012,677.25
"Customer Services, Leisure & Libraries",Leisure Facilities & Services,LEAD,Premises-Related Expenditure,Contract Cleaning,CLEANIT CLEANING SERVICES,05/04/2012,677.25
"Customer Services, Leisure & Libraries",Leisure Facilities & Services,LEAD,Premises-Related Expenditure,Trade Refuse,Waste Recycling Limited,12/04/2012,710.32
"Customer Services, Leisure & Libraries",Leisure Facilities & Services,LEAD,Supplies & Services,Equipment - Hire,BRENNTAG UK LIMITED,16/04/2012,610
"Customer Services, Leisure & Libraries",Leisure Facilities & Services,LEAD,Supplies & Services,Sport Equip - Purchase,SEASCOOTER UK LTD,11/04/2012,581.39
"Customer Services, Leisure & Libraries",Leisure Facilities & Services,LECA,Premises-Related Expenditure,Fuel Oil,MIDLANDS WOOD FUEL SUPPLY LTD,16/04/2012,2997.99
"Customer Services, Leisure & Libraries",Leisure Facilities & Services,LECA,Premises-Related Expenditure,Electricity,WEST MERCIA SUPPLIES Catalogue Supplies ,19/04/2012,4788.88
"Customer Services, Leisure & Libraries",Leisure Facilities & Services,LECA,Premises-Related Expenditure,Clean Mats & Toilet Requisites,PRINCIPAL HYGIENE SYSTEMS,12/04/2012,631.05
"Customer Services, Leisure & Libraries",Leisure Facilities & Services,LECA,Premises-Related Expenditure,Trade Refuse,Waste Recycling Limited,25/04/2012,532.74
"Customer Services, Leisure & Libraries",Leisure Facilities & Services,LECA,Supplies & Services,Chemicals/Cleaning Products,BRENNTAG UK LIMITED,04/04/2012,696.58
"Customer Services, Leisure & Libraries",Leisure Facilities & Services,LECE,Premises-Related Expenditure,R&M - Mechanical,TECHNOGYM UK LTD,25/04/2012,3535.34
"Customer Services, Leisure & Libraries",Leisure Facilities & Services,LEDC,Supplies & Services,Advertising,360 IMAGERY,05/04/2012,1300
"Customer Services, Leisure & Libraries",Leisure Facilities & Services,LEDC,Supplies & Services,Advertising,KIDZ IN SPORT,05/04/2012,2700
"Customer Services, Leisure & Libraries",Leisure Facilities & Services,LEDH,Supplies & Services,Equipment - Purchase,CLARITY RETAIL SYSTEMS LTD,24/04/2012,5319.78
"Customer Services, Leisure & Libraries",Leisure Facilities & Services,LEDH,Supplies & Services,Equipment - Purchase,CLARITY RETAIL SYSTEMS LTD,24/04/2012,13155.16
"Customer Services, Leisure & Libraries",Leisure Facilities & Services,LEDH,Supplies & Services,Other Services,QUEST & NBS Externally Funded,20/04/2012,1600
"Customer Services, Leisure & Libraries",Leisure Facilities & Services,LEDJ,Premises-Related Expenditure,Electricity,WEST MERCIA SUPPLIES Catalogue Supplies ,25/04/2012,748.15
"Customer Services, Leisure & Libraries",Leisure Facilities & Services,LEHG,Premises-Related Expenditure,R&M - Pavillions,WEST MERCIA SUPPLIES Catalogue Supplies ,18/04/2012,1352.22
"Customer Services, Leisure & Libraries",Leisure Facilities & Services,LEHG,Supplies & Services,Equipment - Hire,OAKLEYS LTD,19/04/2012,525.75
"Customer Services, Leisure & Libraries",Leisure Facilities & Services,LEHM,Premises-Related Expenditure,R&M WC Planned,EARTH-TEC LIMITED,10/04/2012,2563
"Customer Services, Leisure & Libraries",Leisure Facilities & Services,LEHM,Premises-Related Expenditure,R&M WC Planned,WFS Border,13/04/2012,1300.05
"Customer Services, Leisure & Libraries",Leisure Facilities & Services,LEHM,Premises-Related Expenditure,R&M WC Planned,AMENITY TECHNOLOGY,10/04/2012,2654.95
"Customer Services, Leisure & Libraries",Leisure Facilities & Services,LEIC,Premises-Related Expenditure,Gas,WEST MERCIA SUPPLIES Catalogue Supplies ,24/04/2012,3379.38
"Customer Services, Leisure & Libraries",Leisure Facilities & Services,LEIC,Supplies & Services,Wet Resale Provision,TROPICAL ICE,05/04/2012,700.9
"Customer Services, Leisure & Libraries",Leisure Facilities & Services,LEIP,Supplies & Services,Payment Of Income Collected,TELFORD TIGERS SOCIETY LTD,03/04/2012,1409
"Customer Services, Leisure & Libraries",Leisure Facilities & Services,LEIP,Supplies & Services,Payment Of Income Collected,TELFORD TITANS,12/04/2012,639
"Customer Services, Leisure & Libraries",Leisure Facilities & Services,LEIR,Premises-Related Expenditure,Electricity,WEST MERCIA SUPPLIES Catalogue Supplies ,18/04/2012,11177.2
"Customer Services, Leisure & Libraries",Leisure Facilities & Services,LEIR,Supplies & Services,Equipment - Hire,V LOCKER UK LIMITED,17/04/2012,810
"Customer Services, Leisure & Libraries",Leisure Facilities & Services,LEIR,Supplies & Services,Sport Equip - Purchase,NEW ENGLISH SKATES LTD,10/04/2012,1070
"Customer Services, Leisure & Libraries",Leisure Facilities & Services,LEIR,Supplies & Services,Sport Equip - Purchase,NEW ENGLISH SKATES LTD,30/04/2012,2047
"Customer Services, Leisure & Libraries",Leisure Facilities & Services,LEIV,Supplies & Services,Confectionery & Snacks,BIKOLD,12/04/2012,737.05
"Customer Services, Leisure & Libraries",Leisure Facilities & Services,LENP,Premises-Related Expenditure,Electricity,WEST MERCIA SUPPLIES Catalogue Supplies ,25/04/2012,1562.86
"Customer Services, Leisure & Libraries",Leisure Facilities & Services,LENP,Premises-Related Expenditure,Electricity,WEST MERCIA SUPPLIES Catalogue Supplies ,25/04/2012,1428.62
"Customer Services, Leisure & Libraries",Leisure Facilities & Services,LENP,Premises-Related Expenditure,Gas,WEST MERCIA SUPPLIES Catalogue Supplies ,25/04/2012,2813.2
"Customer Services, Leisure & Libraries",Leisure Facilities & Services,LENP,Premises-Related Expenditure,Gas,WEST MERCIA SUPPLIES Catalogue Supplies ,25/04/2012,2537.93
"Customer Services, Leisure & Libraries",Leisure Facilities & Services,LENP,Premises-Related Expenditure,Gas,WEST MERCIA SUPPLIES Catalogue Supplies ,25/04/2012,2801.97
"Customer Services, Leisure & Libraries",Leisure Facilities & Services,LEWE,Premises-Related Expenditure,Gas,WEST MERCIA SUPPLIES Catalogue Supplies ,13/04/2012,1000.46
"Customer Services, Leisure & Libraries",Leisure Facilities & Services,LEWP,Premises-Related Expenditure,Gas,WEST MERCIA SUPPLIES Catalogue Supplies ,13/04/2012,515.91
"Customer Services, Leisure & Libraries",Leisure Facilities & Services,LEWP,Supplies & Services,Protective Clothing,SBA LTD,30/04/2012,913.6
"Customer Services, Leisure & Libraries",Library Services,LBDA,Premises-Related Expenditure,Electricity,WEST MERCIA SUPPLIES Catalogue Supplies ,05/04/2012,722.9
"Customer Services, Leisure & Libraries",Library Services,LBMA,Premises-Related Expenditure,Electricity,WEST MERCIA SUPPLIES Catalogue Supplies ,05/04/2012,814.23
"Customer Services, Leisure & Libraries",Library Services,LBST,Supplies & Services,Equipment - Repair,ADT FIRE & SECURITY PLC,18/04/2012,632
"Customer Services, Leisure & Libraries",Library Services,LBTE,Premises-Related Expenditure,Gas,WEST MERCIA SUPPLIES Catalogue Supplies ,05/04/2012,1219.55
"Customer Services, Leisure & Libraries",Library Services,LBTE,Premises-Related Expenditure,Gas,WEST MERCIA SUPPLIES Catalogue Supplies ,05/04/2012,692.85
"Customer Services, Leisure & Libraries",Library Services,LBWE,Premises-Related Expenditure,Electricity,WEST MERCIA SUPPLIES Catalogue Supplies ,25/04/2012,838.58
"Customer Services, Leisure & Libraries",Library Services,LBWE,Premises-Related Expenditure,Gas,WEST MERCIA SUPPLIES Catalogue Supplies ,05/04/2012,1256.45
"Customer Services, Leisure & Libraries",Library Services,LLAA,Supplies & Services,Libraries Book Fund,BIBLIOGRAPHIC DATA SERVICES LIMITED,18/04/2012,1290
"Customer Services, Leisure & Libraries",Library Services,LLAA,Supplies & Services,Libraries Book Fund,CENGAGE LEARNING SERVICES,03/04/2012,3568
"Customer Services, Leisure & Libraries",Library Services,LLAA,Supplies & Services,Libraries Book Fund,CENGAGE LEARNING SERVICES,03/04/2012,-3465
"Customer Services, Leisure & Libraries",Library Services,LLAA,Supplies & Services,Libraries Book Fund,ROYAL BOROUGH OF GREENWICH,04/04/2012,950
"Customer Services, Leisure & Libraries",Library Services,LLAA,Supplies & Services,Stationery,BEMROSE BOOTH LIMITED,04/04/2012,1202.19
"Customer Services, Leisure & Libraries",Library Services,LLAA,Supplies & Services,Promotion Expenses,SHROPSHIRE COUNCIL,11/04/2012,1755.33
"Customer Services, Leisure & Libraries",Library Services,LLAC,Supplies & Services,Computer Software (Maint),AXIELL LTD,05/04/2012,5260.53
"Customer Services, Leisure & Libraries",Library Services,LLAF,Supplies & Services,Promotion Expenses( externally grant funded),Appletree Theatre & Film company,12/04/2012,1020
"Customer Services, Leisure & Libraries",Revenues & Benefits,LRAA,Supplies & Services,Consultants Fees,CIPFA BUSINESS LTD,05/04/2012,1800
"Customer Services, Leisure & Libraries",Revenues & Benefits,LRAA,Supplies & Services,Comp Software (Purch / Hire),NORTHGATE INFORMATION SOLUTIONS UK LTD,05/04/2012,950
"Customer Services, Leisure & Libraries",Revenues & Benefits,LRAA,Supplies & Services,Postages,ROYAL MAIL GROUP LTD,03/04/2012,1265.9
"Customer Services, Leisure & Libraries",Revenues & Benefits,LRAA,Supplies & Services,Postages,ROYAL MAIL GROUP LTD,03/04/2012,1137.47
"Customer Services, Leisure & Libraries",Revenues & Benefits,LRAA,Supplies & Services,Postages,ROYAL MAIL GROUP LTD,12/04/2012,20880.81
"Customer Services, Leisure & Libraries",Revenues & Benefits,LRTA,Supplies & Services,Postages,G FORCE EXPRESS PARCELS LTD,16/04/2012,551.71
"Customer Services, Leisure & Libraries",Revenues & Benefits,LRTA,Supplies & Services,Postages,ROYAL MAIL GROUP LTD,16/04/2012,1389.11
"Customer Services, Leisure & Libraries",Revenues & Benefits,LRTA,Supplies & Services,Postages,ROYAL MAIL GROUP LTD,16/04/2012,1788.18
"Customer Services, Leisure & Libraries",Revenues & Benefits,LRTA,Third Party Payments,Other Government - Services,NORTHGATE INFORMATION SOLUTIONS UK LTD,25/04/2012,15000
"Customer Services, Leisure & Libraries",Revenues & Benefits,LRTB,Supplies & Services,Other Services,GEMINI CONSULTANTS LTD,16/04/2012,9322.78
"Customer Services, Leisure & Libraries",Revenues & Benefits,LRTC,Supplies & Services,Comp Software (Purch / Hire),NORTHGATE INFORMATION SOLUTIONS UK LTD,12/04/2012,1250
"Customer Services, Leisure & Libraries",Superintendent Registrar,LSAB,Premises-Related Expenditure,Grounds Maintenance - Cemeteries,P & W MAINTENANCE CONTRACTING LTD,13/04/2012,576
"Customer Services, Leisure & Libraries",Superintendent Registrar,LSAB,Premises-Related Expenditure,Grounds Maintenance - Cemeteries,P & W MAINTENANCE CONTRACTING LTD,13/04/2012,2843.54
"Customer Services, Leisure & Libraries",Superintendent Registrar,LSAB,Premises-Related Expenditure,Grounds Maintenance - Cemeteries,P & W MAINTENANCE CONTRACTING LTD,13/04/2012,1983.05
Economy & Skills,Lifelong Learning,ANAC,Third Party Payments,Apprentice Funding,TELFORD COLLEGE OF ARTS & TECHNOLOGY,18/04/2012,12756
Economy & Skills,Enterprise & Employment,AEAC,Supplies & Services,Advertising,SHROPSHIRE CHAMBER OF COMMERCE & ENTERPR,12/04/2012,7500
Economy & Skills,Enterprise & Employment,AEAP,Supplies & Services,Consultants Fees,Visit Herefordshire Ltd,27/04/2012,4800
Economy & Skills,Enterprise & Employment,AEAP,Supplies & Services,Consultants Fees,Visit Herefordshire Ltd,13/04/2012,3850
Economy & Skills,Enterprise & Employment,AEAP,Supplies & Services,Consultants Fees,HEREFORDSHIRE COUNCIL,20/04/2012,2250
Economy & Skills,Enterprise & Employment,AEAP,Supplies & Services,Consultants Fees,E4 Environment,13/04/2012,512.5
Economy & Skills,Enterprise & Employment,AEAP,Supplies & Services,Consultants Fees,HEREFORDSHIRE COUNCIL,20/04/2012,2500
Economy & Skills,Enterprise & Employment,AEAR,Premises-Related Expenditure,Hire Of Rooms,MEETING POINT TRUST LTD,26/04/2012,1322.65
Economy & Skills,Lifelong Learning,AEAD,Supplies & Services,Marketing & Publicity,HAYMARKET PUBLISHING SERVICES LTD,27/04/2012,919.97
Economy & Skills,Lifelong Learning,AEAD,Supplies & Services,Marketing & Publicity,GET SMART,25/04/2012,563
Economy & Skills,Lifelong Learning,AEAG,Supplies & Services,Web Services,GRITT DESIGN,03/04/2012,1500
Economy & Skills,Lifelong Learning,AEAG,Supplies & Services,Marketing & Publicity,DESIGN:ONE LTD,03/04/2012,1310
Economy & Skills,Lifelong Learning,AEAG,Supplies & Services,Marketing & Publicity,DESIGN:ONE LTD,03/04/2012,5450
Economy & Skills,Lifelong Learning,AEAG,Supplies & Services,Marketing & Publicity,DESIGN:ONE LTD,03/04/2012,5000
Economy & Skills,Lifelong Learning,AEAG,Supplies & Services,Marketing & Publicity,DESIGN:ONE LTD,03/04/2012,1400
Economy & Skills,Lifelong Learning,AEAG,Supplies & Services,Marketing & Publicity,DESIGN:ONE LTD,03/04/2012,2645
Economy & Skills,Lifelong Learning,ALAA,Third Party Payments,Childminders,CHILDCARE SOS,19/04/2012,710
Economy & Skills,Lifelong Learning,ALAA,Third Party Payments,Childminders,CHILDCARE SOS,19/04/2012,1861.1
Economy & Skills,Lifelong Learning,ALAA,Third Party Payments,Childminders,CHILDCARE SOS,05/04/2012,779.35
Economy & Skills,Lifelong Learning,ALAA,Third Party Payments,Childminders,CHILDCARE SOS,05/04/2012,1322.65
Economy & Skills,Lifelong Learning,ALAF,Supplies & Services,Sub Contractors,TELFORD COLLEGE OF ARTS & TECHNOLOGY,19/04/2012,25000
Economy & Skills,Lifelong Learning,ALAF,Supplies & Services,Sub Contractors,RELATE SHROPSHIRE & HEREFORDSHIRE LTD,19/04/2012,3105
Economy & Skills,Lifelong Learning,ALAF,Supplies & Services,Sub Contractors,TELFORD COLLEGE OF ARTS & TECHNOLOGY,19/04/2012,25000
Economy & Skills,Lifelong Learning,ALAF,Supplies & Services,Sub Contractors,TELFORD COLLEGE OF ARTS & TECHNOLOGY,19/04/2012,-25000
Economy & Skills,Lifelong Learning,ALAF,Supplies & Services,Sub Contractors,Macbrac Training and Development,27/04/2012,4990
Economy & Skills,Lifelong Learning,ALAG,Employees,Course Fees,DEVELOP-MEANT TRAINING CONSULTANTS,05/04/2012,3500
Economy & Skills,Lifelong Learning,ALAG,Supplies & Services,Registration / Licence Fees,UCAS ENTERPRISES LTD,23/04/2012,15000
Economy & Skills,Strategic Regeneration & Borough Towns Initiative,AEAF,Supplies & Services,Research Surveys,Wave- length CIC,20/04/2012,5000
Economy & Skills,Strategic Regeneration & Borough Towns Initiative,AEAF,Supplies & Services,Web Services,Erup Creative Limited,27/04/2012,500
Environmental Services,Engineering Services,EHAM,Premises-Related Expenditure,Ad-hoc Maintenance,PRYSMIAN CABLES & SYSTEMS LTD,11/04/2012,1841.75
Environmental Services,Engineering Services,EHAM,Premises-Related Expenditure,Ad-hoc Maintenance,PRYSMIAN CABLES & SYSTEMS LTD,11/04/2012,2437.8
Environmental Services,Engineering Services,EHAM,Premises-Related Expenditure,Ad-hoc Maintenance,PRYSMIAN CABLES & SYSTEMS LTD,12/04/2012,1033.77
Environmental Services,Engineering Services,EHAM,Premises-Related Expenditure,Ad-hoc Maintenance,PRYSMIAN CABLES & SYSTEMS LTD,13/04/2012,644.25
Environmental Services,Engineering Services,EHAM,Premises-Related Expenditure,Ad-hoc Maintenance,PRYSMIAN CABLES & SYSTEMS LTD,10/04/2012,790.15
Environmental Services,Engineering Services,EHAM,Premises-Related Expenditure,Ad-hoc Maintenance,PRYSMIAN CABLES & SYSTEMS LTD,10/04/2012,1545.27
Environmental Services,Engineering Services,EHAM,Premises-Related Expenditure,Ad-hoc Maintenance,PRYSMIAN CABLES & SYSTEMS LTD,12/04/2012,1362.67
Environmental Services,Engineering Services,EHAM,Premises-Related Expenditure,Ad-hoc Maintenance,PRYSMIAN CABLES & SYSTEMS LTD,12/04/2012,887.1
Environmental Services,Engineering Services,EHAN,Premises-Related Expenditure,Ad-hoc Maintenance,PRYSMIAN CABLES & SYSTEMS LTD,10/04/2012,1248.06
Environmental Services,Engineering Services,EHAP,Premises-Related Expenditure,Ad-hoc Maintenance,PRYSMIAN CABLES & SYSTEMS LTD,10/04/2012,834.4
Environmental Services,Engineering Services,EHAP,Premises-Related Expenditure,Ad-hoc Maintenance,PRYSMIAN CABLES & SYSTEMS LTD,12/04/2012,501.85
Environmental Services,Engineering Services,EHAS,Premises-Related Expenditure,Ad-hoc Maintenance,PRYSMIAN CABLES & SYSTEMS LTD,11/04/2012,9236.71
Environmental Services,Engineering Services,EHAS,Premises-Related Expenditure,Ad-hoc Maintenance,PRYSMIAN CABLES & SYSTEMS LTD,11/04/2012,4038.58
Environmental Services,Engineering Services,EHBC,Premises-Related Expenditure,R&M -Building Other,TELFORD & WREKIN SERVICES LTD,16/04/2012,1000
Environmental Services,Engineering Services,EHBC,Premises-Related Expenditure,Ad-hoc Maintenance,PRYSMIAN CABLES & SYSTEMS LTD,11/04/2012,7717.61
Environmental Services,Engineering Services,EHBC,Premises-Related Expenditure,Ad-hoc Maintenance,PRYSMIAN CABLES & SYSTEMS LTD,11/04/2012,3451.82
Environmental Services,Engineering Services,EHBC,Premises-Related Expenditure,Ad-hoc Maintenance,PRYSMIAN CABLES & SYSTEMS LTD,13/04/2012,34260
Environmental Services,Engineering Services,EHBC,Premises-Related Expenditure,Ad-hoc Maintenance,PRYSMIAN CABLES & SYSTEMS LTD,12/04/2012,784.84
Environmental Services,Engineering Services,EHBC,Premises-Related Expenditure,Electricity,WEST MERCIA SUPPLIES Catalogue Supplies ,20/04/2012,96204.44
Environmental Services,Engineering Services,EHBC,Premises-Related Expenditure,Sewage Charges,SEVERN TRENT WATER LTD,20/04/2012,519.59
Environmental Services,Engineering Services,EHBC,Supplies & Services,Consultancy,SSE Contracting Ltd T/A Mayflower Ltd,23/04/2012,2500
Environmental Services,Engineering Services,ESAA,Employees,Staff Training,Training for Transport Professionals,11/04/2012,1560
Environmental Services,Engineering Services,ESAB,Supplies & Services,Other Services,BIOGAS TECHNOLOGY LIMITED,16/04/2012,734.82
Environmental Services,Engineering Services,WEAC,Capital Expenditure,Payments to Contractor,TELFORD & WREKIN SERVICES LTD,13/04/2012,3407.78
Environmental Services,Engineering Services,WEAC,Capital Expenditure,Payments to Contractor,TRAFFIC & COMMERCIAL SIGNS LTD,23/04/2012,547.44
Environmental Services,Engineering Services,WEAC,Capital Expenditure,Payments to Contractor,TELFORD & WREKIN SERVICES LTD,24/04/2012,25511.99
Environmental Services,Engineering Services,WEAC,Capital Expenditure,Payments to Contractor,AGGREGATE INDUSTRIES UK LTD,03/04/2012,-6205.16
Environmental Services,Engineering Services,WEAC,Capital Expenditure,Payments to Contractor,TRAFFIC & COMMERCIAL SIGNS LTD,23/04/2012,2069.11
Environmental Services,Engineering Services,WEAC,Capital Expenditure,Payments to Contractor,TRAFFIC & COMMERCIAL SIGNS LTD,25/04/2012,3372.09
Environmental Services,Engineering Services,WEAD,Capital Expenditure,Payments to Contractor,E.ON UK ENERGY SERVICES LTD,30/04/2012,54332.41
Environmental Services,Engineering Services,WEAD,Capital Expenditure,Payments to Contractor,TELFORD & WREKIN SERVICES LTD,16/04/2012,6430.22
Environmental Services,Engineering Services,WEAD,Capital Expenditure,Payments to Contractor,TELFORD & WREKIN SERVICES LTD,16/04/2012,2777.2
Environmental Services,Engineering Services,WEAF,Capital Expenditure,Payments to Contractor,GORMAN MANAGEMENT SERVICES LTD,11/04/2012,3101.09
Environmental Services,Engineering Services,WEAF,Capital Expenditure,Payments to Contractor,MCPHILLIPS (WELLINGTON) LTD,18/04/2012,5009.11
Environmental Services,Engineering Services,WEAF,Capital Expenditure,Payments to Contractor,MCPHILLIPS (WELLINGTON) LTD,18/04/2012,5739.14
Environmental Services,Engineering Services,WEAF,Capital Expenditure,Payments to Contractor,TELFORD & WREKIN SERVICES LTD,16/04/2012,8462.52
Environmental Services,Engineering Services,WEAF,Capital Expenditure,Payments to Contractor,TELFORD & WREKIN SERVICES LTD,16/04/2012,5481.48
Environmental Services,Engineering Services,WEAH,Capital Expenditure,Payments to Contractor,MCPHILLIPS (WELLINGTON) LTD,11/04/2012,35820.7
Environmental Services,Engineering Services,WEAH,Capital Expenditure,Payments to Contractor,Hygrade Idustrial Plastics Limited,27/04/2012,18683
Environmental Services,Engineering Services,WESA,Capital Expenditure,Payments to Contractor,TELFORD & WREKIN SERVICES LTD,11/04/2012,543.55
Environmental Services,Engineering Services,YEAA,Supplies & Services,Consultants Fees,ENVIRONMENT AGENCY,18/04/2012,13102.25
Environmental Services,Engineering Services,YEAA,Supplies & Services,Consultants Fees,ENVIRONMENT AGENCY,18/04/2012,13102.25
Environmental Services,Engineering Services,YEAA,Supplies & Services,Consultants Fees,ENVIRONMENT AGENCY,18/04/2012,13102.25
Environmental Services,Engineering Services,YEAA,Supplies & Services,Consultants Fees,ENVIRONMENT AGENCY,18/04/2012,13102.25
Environmental Services,Engineering Services,YEAA,Supplies & Services,Other Expenses,BRITISH GAS BUSINESS (ELECTRICITY),24/04/2012,688.48
Environmental Services,Environment & Open Space,ECAA,Supplies & Services,Bulk Refuse Contracts Purch,CRAEMER UK LTD,11/04/2012,7560
Environmental Services,Environment & Open Space,ECAA,Supplies & Services,Bulk Refuse Contracts Purch,UK CONTAINER MAINTENANCE LIMITED,19/04/2012,5486
Environmental Services,Environment & Open Space,ECAF,Supplies & Services,Other Services,HILBRAE PETS HOTEL,03/04/2012,2669.59
Environmental Services,Environment & Open Space,ECAF,Third Party Payments,DSO Contractor Recharge,TELFORD & WREKIN SERVICES LTD,20/04/2012,2066
Environmental Services,Environment & Open Space,ECAH,Third Party Payments,DSO Contractor Recharge,TELFORD & WREKIN SERVICES LTD,26/04/2012,93996.82
Environmental Services,Environment & Open Space,ECAH,Third Party Payments,DSO Contractor Recharge,J&HM DICKSON LIMITED,11/04/2012,2400
Environmental Services,Environment & Open Space,EEAB,Premises-Related Expenditure,R&M -Buildings DLO Charge,TELFORD & WREKIN SERVICES LTD,12/04/2012,42915.52
Environmental Services,Environment & Open Space,EEAB,Premises-Related Expenditure,Grounds Maintenance - L&CS,KEEP BRITAIN TIDY,16/04/2012,12670
Environmental Services,Environment & Open Space,EEAB,Supplies & Services,Other Materials,WEST MERCIA SUPPLIES Catalogue Supplies ,24/04/2012,514.79
Environmental Services,Environment & Open Space,EEAB,Supplies & Services,Sub Contractors,A HAND SERVICES LTD,03/04/2012,-1542.19
Environmental Services,Environment & Open Space,EEAB,Supplies & Services,Other Services,TELFORD & WREKIN SERVICES LTD,16/04/2012,1977.6
Environmental Services,Environment & Open Space,EEAB,Supplies & Services,Other Services,TELFORD & WREKIN SERVICES LTD,16/04/2012,1977.6
Environmental Services,Environment & Open Space,EEAB,Supplies & Services,Other Services,TELFORD & WREKIN SERVICES LTD,16/04/2012,7910.4
Environmental Services,Environment & Open Space,EEBR,Employees,Training Expenses,ARMADA COMPUTER PUBLICATIONS LTD,10/04/2012,2970
Environmental Services,Environment & Open Space,EECD,Premises-Related Expenditure,General Rents,TELFORD & WREKIN SERVICES LTD,16/04/2012,8384.25
Environmental Services,Environment & Open Space,EECD,Premises-Related Expenditure,General Rents,TELFORD & WREKIN SERVICES LTD,16/04/2012,8384.25
Environmental Services,Environment & Open Space,EPAD,Supplies & Services,Other Materials,Scottish Woodlands,10/04/2012,1500
Environmental Services,Environment & Open Space,EPAD,Supplies & Services,Other Materials,FLINTSHIRE WOODLANDS,20/04/2012,1500
Environmental Services,Environment & Open Space,EPAF,Supplies & Services,Sub Contractors,TELFORD & WREKIN SERVICES LTD,19/04/2012,550
Environmental Services,Environment & Open Space,EPAF,Supplies & Services,Sub Contractors,TELFORD & WREKIN SERVICES LTD,19/04/2012,1225.9
Environmental Services,Environment & Open Space,EPAF,Supplies & Services,Sub Contractors,PORTAKABIN LTD,19/04/2012,1728.97
Environmental Services,Environment & Open Space,EPAF,Supplies & Services,Sub Contractors,BUSINESS WATCH GUARDING LIMITED,19/04/2012,592.6
Environmental Services,Environment & Open Space,EPAF,Supplies & Services,Co-Co General,ADIEN,25/04/2012,4990
Environmental Services,Environment & Open Space,EWAE,Supplies & Services,Other Materials,JACK MOODY LTD,30/04/2012,8630.4
Environmental Services,Environment & Open Space,EWAE,Supplies & Services,Green Waste,JACK MOODY LTD,26/04/2012,-614.4
Environmental Services,Environment & Open Space,EWAE,Supplies & Services,Green Waste,JACK MOODY LTD,30/04/2012,1290.24
Environmental Services,Environment & Open Space,EWAE,Supplies & Services,Green Waste,JACK MOODY LTD,19/04/2012,614.4
Environmental Services,Environment & Open Space,EWAE,Supplies & Services,Other Services,AQUA FORCE SPECIAL WASTE LTD,19/04/2012,555
Environmental Services,Environment & Open Space,EWAE,Supplies & Services,Service Contracts,AQUA FORCE SPECIAL WASTE LTD,30/04/2012,1450
Environmental Services,Environment & Open Space,EWAE,Supplies & Services,Service Contracts,AQUA FORCE SPECIAL WASTE LTD,30/04/2012,1780
Environmental Services,Environment & Open Space,EWAE,Supplies & Services,Service Contracts,SITA UK,30/04/2012,671.51
Environmental Services,Environment & Open Space,EWAE,Supplies & Services,Service Contracts,AQUA FORCE SPECIAL WASTE LTD,19/04/2012,1450
Environmental Services,Environment & Open Space,EWAE,Supplies & Services,Service Contracts,AQUA FORCE SPECIAL WASTE LTD,19/04/2012,1450
Environmental Services,Environment & Open Space,EWAE,Supplies & Services,Asbestos Waste,SITA UK,30/04/2012,896.76
Environmental Services,Environment & Open Space,WEAJ,Capital Expenditure,External Professional Fees,PETER LINSELL MANAGEMENT CONSULTANTS,11/04/2012,760
Environmental Services,Environment & Open Space,WEAJ,Capital Expenditure,Payments to Contractor,PETER LINSELL MANAGEMENT CONSULTANTS,27/04/2012,950
Environmental Services,Environment & Open Space,WEAK,Capital Expenditure,Payments to Contractor,STAFFORD TREE SERVICE,27/04/2012,1800
Environmental Services,Environment & Open Space,WEAK,Capital Expenditure,Payments to Contractor,STAFFORD TREE SERVICE,11/04/2012,2750
Environmental Services,Environment & Open Space,WEAK,Capital Expenditure,Payments to Contractor,STAFFORD TREE SERVICE,05/04/2012,2700
Environmental Services,Environment & Open Space,WEAK,Capital Expenditure,Payments to Contractor,STAFFORD TREE SERVICE,05/04/2012,2000
Environmental Services,Environment & Open Space,WEPA,Capital Expenditure,Payments to Contractor,STAFFORD TREE SERVICE,27/04/2012,5700
Environmental Services,Environment & Open Space,WEPA,Capital Expenditure,Payments to Contractor,FITZGERALD CONTRACTORS LTD,05/04/2012,134617.56
Environmental Services,Highways & Transport,EHAB,Premises-Related Expenditure,Grounds Maintenance - L&CS,STROWP,13/04/2012,1200
Environmental Services,Highways & Transport,EHAB,Premises-Related Expenditure,Grounds Maintenance - L&CS,AJB CONTRACTING LTD,13/04/2012,1563
Environmental Services,Highways & Transport,EHAD,Supplies & Services,Consultants Fees,JACOBS ENGINEERING UK LIMITED,30/04/2012,28000.05
Environmental Services,Highways & Transport,EHAD,Supplies & Services,Consultants Fees,JACOBS ENGINEERING UK LIMITED,20/04/2012,35000
Environmental Services,Highways & Transport,EHAK,Supplies & Services,Comp Hardware (Purch / Hire),ELGIN,19/04/2012,6750
Environmental Services,Highways & Transport,EHBE,Premises-Related Expenditure,R&M -Buildings DLO Charge,TELFORD & WREKIN SERVICES LTD,25/04/2012,947.74
Environmental Services,Highways & Transport,EHBE,Premises-Related Expenditure,Sewage Charges,SEVERN TRENT WATER LTD,23/04/2012,1703.27
Environmental Services,Highways & Transport,EHBE,Premises-Related Expenditure,Sewage Charges,SEVERN TRENT WATER LTD,23/04/2012,886.07
Environmental Services,Highways & Transport,EHBE,Premises-Related Expenditure,Sewage Charges,SEVERN TRENT WATER LTD,25/04/2012,519.59
Environmental Services,Highways & Transport,EHBE,Premises-Related Expenditure,Sewage Charges,SEVERN TRENT WATER LTD,23/04/2012,741.65
Environmental Services,Highways & Transport,EHBE,Premises-Related Expenditure,Sewage Charges,SEVERN TRENT WATER LTD,23/04/2012,741.65
Environmental Services,Highways & Transport,EHBE,Supplies & Services,Stationery,BEMROSE BOOTH LIMITED,23/04/2012,1076.8
Environmental Services,Highways & Transport,EHBE,Supplies & Services,Security Services,VINCI PARK SERVICES UK LTD,23/04/2012,7608.33
Environmental Services,Highways & Transport,EHBE,Supplies & Services,Security Services,VINCI PARK SERVICES UK LTD,23/04/2012,733.7
Environmental Services,Highways & Transport,EHBE,Supplies & Services,Other Services,SECURITY PLUS LIMITED,04/04/2012,685.71
Environmental Services,Highways & Transport,EHBE,Supplies & Services,Promotion Expenses,BRITISH PARKING ASSOCIATION,23/04/2012,-600
Environmental Services,Highways & Transport,EHBE,Supplies & Services,Promotion Expenses,BRITISH PARKING ASSOCIATION,23/04/2012,3890
Environmental Services,Highways & Transport,EHBM,Third Party Payments,Private Contractors,TELFORD & WREKIN SERVICES LTD,26/04/2012,727735.29
Environmental Services,Highways & Transport,EHBM,Third Party Payments,Private Contractors,TELFORD & WREKIN SERVICES LTD,26/04/2012,181261.15
Environmental Services,Highways & Transport,EHBY,Supplies & Services,Computer Recharge,MACE LTD,20/04/2012,12729
Environmental Services,Highways & Transport,ETAA,Supplies & Services,Concessionary Travel,ESP Systex,26/04/2012,18431.8
Environmental Services,Highways & Transport,ETAA,Supplies & Services,Concessionary Travel,ARRIVA MIDLANDS NORTH LIMITED,18/04/2012,141805.16
Environmental Services,Highways & Transport,ETAA,Supplies & Services,Concessionary Travel,NATIONAL TRANSPORT TOKENS LTD,03/04/2012,3000
Environmental Services,Highways & Transport,ETAA,Supplies & Services,Public Transport Subsidy,DIAMOND CARS (TELFORD) LTD,03/04/2012,850.8
Environmental Services,Highways & Transport,ETAA,Supplies & Services,Public Transport Subsidy,CENTRAL TAXIS LIMITED TELFORD,03/04/2012,1000
Environmental Services,Highways & Transport,ETAA,Supplies & Services,Public Transport Subsidy,CENTRAL TAXIS LIMITED TELFORD,10/04/2012,1018.7
Environmental Services,Highways & Transport,ETAB,Premises-Related Expenditure,Contract Cleaning,OCEAN CONTRACT CLEANING LTD,27/04/2012,3321.46
Environmental Services,Highways & Transport,ETAB,Premises-Related Expenditure,Contract Cleaning,OCEAN CONTRACT CLEANING LTD,03/04/2012,3321.46
Environmental Services,Highways & Transport,ETAB,Supplies & Services,Equipment - Purchase,TONY COCHRANE GLASS AND GLAZING SERVICES,17/04/2012,-1642
Environmental Services,Highways & Transport,ETAB,Supplies & Services,Equipment - Purchase,TONY COCHRANE GLASS AND GLAZING SERVICES,17/04/2012,1642
Environmental Services,Highways & Transport,ETAB,Supplies & Services,Equipment - Purchase,TONY COCHRANE GLASS AND GLAZING SERVICES,11/04/2012,1642
Environmental Services,Highways & Transport,ETAB,Supplies & Services,Equipment - Purchase,M Bissell Display,11/04/2012,2193.9
Environmental Services,Highways & Transport,ETAE,Transport-Related Expenditure,Parents Reimbursements,REDACTED PERSONAL INFORMATION,16/04/2012,691.15
Environmental Services,Highways & Transport,ETAE,Transport-Related Expenditure,Swimming transport,CENTRAL TAXIS LTD SHREWSBURY,04/04/2012,518.4
Environmental Services,Highways & Transport,ETAE,Transport-Related Expenditure,Taxi Costs,ULTIMATE TAXIS LTD,20/04/2012,538.56
Environmental Services,Highways & Transport,ETAE,Transport-Related Expenditure,Taxi Costs,NSL Limited t/a Patient First Group,26/04/2012,578.34
Environmental Services,Highways & Transport,ETAE,Transport-Related Expenditure,Taxi Costs,DIAMOND CARS (TELFORD) LTD,20/04/2012,1570.8
Environmental Services,Highways & Transport,ETAE,Transport-Related Expenditure,Taxi Costs,DIAMOND CARS (TELFORD) LTD,23/04/2012,3634
Environmental Services,Highways & Transport,ETAE,Transport-Related Expenditure,Taxi Costs,DIAMOND CARS (TELFORD) LTD,23/04/2012,1346.4
Environmental Services,Highways & Transport,ETAE,Transport-Related Expenditure,Taxi Costs,DIAMOND CARS (TELFORD) LTD,23/04/2012,1015.08
Environmental Services,Highways & Transport,ETAE,Transport-Related Expenditure,Taxi Costs,DIAMOND CARS (TELFORD) LTD,23/04/2012,1705.44
Environmental Services,Highways & Transport,ETAE,Transport-Related Expenditure,Taxi Costs,DIAMOND CARS (TELFORD) LTD,27/04/2012,832.32
Environmental Services,Highways & Transport,ETAE,Transport-Related Expenditure,Taxi Costs,CENTRAL TAXIS LTD SHREWSBURY,11/04/2012,1035.3
Environmental Services,Highways & Transport,ETAE,Transport-Related Expenditure,Taxi Costs,CENTRAL TAXIS LTD SHREWSBURY,11/04/2012,637.5
Environmental Services,Highways & Transport,ETAE,Transport-Related Expenditure,Taxi Costs,NSL Limited t/a Patient First Group,23/04/2012,894.88
Environmental Services,Highways & Transport,ETAE,Transport-Related Expenditure,Taxi Costs,DIAMOND CARS (TELFORD) LTD,23/04/2012,2199.12
Environmental Services,Highways & Transport,ETAE,Transport-Related Expenditure,Taxi Costs,DIAMOND CARS (TELFORD) LTD,23/04/2012,2145.6
Environmental Services,Highways & Transport,ETAE,Transport-Related Expenditure,Taxi Costs,DIAMOND CARS (TELFORD) LTD,20/04/2012,538.56
Environmental Services,Highways & Transport,ETAE,Transport-Related Expenditure,Taxi Costs,COUNTY CARS,27/04/2012,686
Environmental Services,Highways & Transport,ETAE,Transport-Related Expenditure,Taxi Costs,DIAMOND CARS (TELFORD) LTD,23/04/2012,1696.2
Environmental Services,Highways & Transport,ETAE,Transport-Related Expenditure,Taxi Costs,NSL Limited t/a Patient First Group,23/04/2012,1260
Environmental Services,Highways & Transport,ETAE,Transport-Related Expenditure,Contract Hire,NSL Limited t/a Patient First Group,03/04/2012,990
Environmental Services,Highways & Transport,ETAE,Transport-Related Expenditure,Contract Hire,DIAMOND CARS (TELFORD) LTD,04/04/2012,979.2
Environmental Services,Highways & Transport,ETAE,Transport-Related Expenditure,Contract Hire,DIAMOND CARS (TELFORD) LTD,04/04/2012,1233.6
Environmental Services,Highways & Transport,ETAE,Transport-Related Expenditure,Contract Hire,AT BROWN (COACHES) LTD,23/04/2012,904.65
Environmental Services,Highways & Transport,ETAE,Transport-Related Expenditure,Contract Hire,AT BROWN (COACHES) LTD,23/04/2012,817.9
Environmental Services,Highways & Transport,ETAE,Transport-Related Expenditure,Contract Hire,AT BROWN (COACHES) LTD,23/04/2012,1374.4
Environmental Services,Highways & Transport,ETAE,Transport-Related Expenditure,Contract Hire,DIAMOND CARS (TELFORD) LTD,04/04/2012,715.17
Environmental Services,Highways & Transport,ETAE,Transport-Related Expenditure,Contract Hire,CENTRAL TAXIS LTD SHREWSBURY,11/04/2012,685.44
Environmental Services,Highways & Transport,ETAE,Transport-Related Expenditure,Contract Hire,AT BROWN (COACHES) LTD,23/04/2012,782.3
Environmental Services,Highways & Transport,ETAE,Transport-Related Expenditure,Contract Hire,AT BROWN (COACHES) LTD,23/04/2012,1373.65
Environmental Services,Highways & Transport,ETAE,Transport-Related Expenditure,Contract Hire,AT BROWN (COACHES) LTD,23/04/2012,861.25
Environmental Services,Highways & Transport,ETAE,Transport-Related Expenditure,Contract Hire,AT BROWN (COACHES) LTD,23/04/2012,904.65
Environmental Services,Highways & Transport,ETAE,Transport-Related Expenditure,Contract Hire,AT BROWN (COACHES) LTD,23/04/2012,817.9
Environmental Services,Highways & Transport,ETAE,Transport-Related Expenditure,Contract Hire,AT BROWN (COACHES) LTD,23/04/2012,1374.4
Environmental Services,Highways & Transport,ETAE,Transport-Related Expenditure,Contract Hire,AT BROWN (COACHES) LTD,23/04/2012,989.25
Environmental Services,Highways & Transport,ETAE,Transport-Related Expenditure,Contract Hire,AT BROWN (COACHES) LTD,23/04/2012,645.15
Environmental Services,Highways & Transport,ETAE,Transport-Related Expenditure,Contract Hire,AT BROWN (COACHES) LTD,23/04/2012,1162.8
Environmental Services,Highways & Transport,ETAE,Transport-Related Expenditure,Contract Hire,AT BROWN (COACHES) LTD,23/04/2012,876.2
Environmental Services,Highways & Transport,ETAE,Transport-Related Expenditure,Contract Hire,DIAMOND CARS (TELFORD) LTD,04/04/2012,1201.56
Environmental Services,Highways & Transport,ETAE,Transport-Related Expenditure,Contract Hire,AT BROWN (COACHES) LTD,23/04/2012,989.25
Environmental Services,Highways & Transport,ETAE,Transport-Related Expenditure,Contract Hire,AT BROWN (COACHES) LTD,23/04/2012,645.15
Environmental Services,Highways & Transport,ETAE,Transport-Related Expenditure,Contract Hire,AT BROWN (COACHES) LTD,23/04/2012,782.3
Environmental Services,Highways & Transport,ETAE,Transport-Related Expenditure,Contract Hire,AT BROWN (COACHES) LTD,23/04/2012,1373.65
Environmental Services,Highways & Transport,ETAE,Transport-Related Expenditure,Contract Hire,AT BROWN (COACHES) LTD,23/04/2012,1162.8
Environmental Services,Highways & Transport,ETAE,Transport-Related Expenditure,Contract Hire,AT BROWN (COACHES) LTD,23/04/2012,876.2
Environmental Services,Highways & Transport,ETAE,Transport-Related Expenditure,Contract Hire,AT BROWN (COACHES) LTD,23/04/2012,861.25
Environmental Services,Highways & Transport,ETAE,Transport-Related Expenditure,Contract Hire,ELLESMERE COLLEGE,13/04/2012,502
Environmental Services,Highways & Transport,ETAE,Transport-Related Expenditure,Contract Hire,CENTRAL TAXIS LTD SHREWSBURY,05/04/2012,690.37
Environmental Services,Highways & Transport,ETAE,Transport-Related Expenditure,Contract Hire,ARRIVA MIDLANDS NORTH LIMITED,10/04/2012,1290
Environmental Services,Highways & Transport,ETAE,Transport-Related Expenditure,Contract Hire,DIAMOND CARS (TELFORD) LTD,10/04/2012,1788
Environmental Services,Highways & Transport,ETAE,Transport-Related Expenditure,Contract Hire,DIAMOND CARS (TELFORD) LTD,04/04/2012,1106.7
Environmental Services,Highways & Transport,ETAE,Transport-Related Expenditure,Contract Hire,DIAMOND CARS (TELFORD) LTD,04/04/2012,1599.36
Environmental Services,Highways & Transport,ETAE,Transport-Related Expenditure,Contract Hire,ARRIVA MIDLANDS NORTH LIMITED,03/04/2012,13500
Environmental Services,Highways & Transport,ETAE,Transport-Related Expenditure,Contract Hire,COUNTY CARS,03/04/2012,588
Environmental Services,Highways & Transport,ETAE,Transport-Related Expenditure,Contract Hire - Mini Bus,DIAMOND CARS (TELFORD) LTD,12/04/2012,1929.84
Environmental Services,Highways & Transport,ETAE,Transport-Related Expenditure,Contract Hire - Mini Bus,DIAMOND CARS (TELFORD) LTD,12/04/2012,1750.32
Environmental Services,Highways & Transport,ETAE,Transport-Related Expenditure,Contract Hire - Mini Bus,DIAMOND CARS (TELFORD) LTD,12/04/2012,2333.76
Environmental Services,Highways & Transport,ETAE,Transport-Related Expenditure,Contract Hire - Mini Bus,DIAMOND CARS (TELFORD) LTD,12/04/2012,2244
Environmental Services,Highways & Transport,ETAE,Transport-Related Expenditure,Contract Hire - Mini Bus,DIAMOND CARS (TELFORD) LTD,12/04/2012,2221.56
Environmental Services,Highways & Transport,ETAE,Transport-Related Expenditure,Contract Hire - Mini Bus,DIAMOND CARS (TELFORD) LTD,12/04/2012,2333.76
Environmental Services,Highways & Transport,ETAE,Transport-Related Expenditure,Contract Hire - Mini Bus,KLM TRAVEL,12/04/2012,2285.36
Environmental Services,Highways & Transport,ETAE,Transport-Related Expenditure,Contract Hire - Mini Bus,EXPRESS TRAVEL,20/04/2012,1795.2
Environmental Services,Highways & Transport,ETAE,Transport-Related Expenditure,Contract Hire - Mini Bus,SHAWS TRAVEL LTD,20/04/2012,2131.8
Environmental Services,Highways & Transport,ETAE,Transport-Related Expenditure,Contract Hire - Mini Bus,EXPRESS TRAVEL,23/04/2012,2244
Environmental Services,Highways & Transport,ETAE,Transport-Related Expenditure,Contract Hire - Mini Bus,SHAWS TRAVEL LTD,20/04/2012,2300.1
Environmental Services,Highways & Transport,ETAE,Transport-Related Expenditure,Contract Hire - Mini Bus,SHAWS TRAVEL LTD,20/04/2012,2199.12
Environmental Services,Highways & Transport,ETAE,Transport-Related Expenditure,Contract Hire - Mini Bus,SHAWS TRAVEL LTD,20/04/2012,1974.72
Environmental Services,Highways & Transport,ETAE,Transport-Related Expenditure,Contract Hire - Mini Bus,DIAMOND CARS (TELFORD) LTD,23/04/2012,2280.72
Environmental Services,Highways & Transport,ETAE,Transport-Related Expenditure,Contract Hire - Mini Bus,ULTIMATE TAXIS LTD,20/04/2012,1795.2
Environmental Services,Highways & Transport,ETAE,Transport-Related Expenditure,Contract Hire - Mini Bus,ULTIMATE TAXIS LTD,20/04/2012,1553.8
Environmental Services,Highways & Transport,ETAE,Transport-Related Expenditure,Contract Hire - Mini Bus,ULTIMATE TAXIS LTD,20/04/2012,685.5
Environmental Services,Highways & Transport,ETAE,Transport-Related Expenditure,Transport Contractors,AT BROWN (COACHES) LTD,12/04/2012,5518.15
Environmental Services,Highways & Transport,ETAE,Transport-Related Expenditure,Transport Contractors,AT BROWN (COACHES) LTD,12/04/2012,1374.4
Environmental Services,Highways & Transport,ETAE,Transport-Related Expenditure,Transport Contractors,AT BROWN (COACHES) LTD,12/04/2012,645.15
Environmental Services,Highways & Transport,ETAE,Transport-Related Expenditure,Transport Contractors,AT BROWN (COACHES) LTD,12/04/2012,1373.65
Environmental Services,Highways & Transport,ETAE,Transport-Related Expenditure,Transport Contractors,AT BROWN (COACHES) LTD,12/04/2012,876.2
Environmental Services,Highways & Transport,ETAE,Transport-Related Expenditure,Transport Contractors,M H ELCOCK & SON LTD T/A ELCOCK REISEN,20/04/2012,600
Environmental Services,Highways & Transport,ETAE,Transport-Related Expenditure,Transport Contractors,M H ELCOCK & SON LTD T/A ELCOCK REISEN,20/04/2012,600
Environmental Services,Highways & Transport,ETAE,Transport-Related Expenditure,Transport Contractors,RIVERSIDE COACHWAYS,24/04/2012,520
Environmental Services,Highways & Transport,ETAE,Transport-Related Expenditure,Transport Contractors,AT BROWN (COACHES) LTD,12/04/2012,1995
Environmental Services,Highways & Transport,ETAE,Transport-Related Expenditure,Transport Contractors,M H ELCOCK & SON LTD T/A ELCOCK REISEN,12/04/2012,4441.36
Environmental Services,Highways & Transport,ETAE,Transport-Related Expenditure,Transport Contractors,RIVERSIDE COACHWAYS,13/04/2012,3366
Environmental Services,Highways & Transport,ETAE,Transport-Related Expenditure,Transport Contractors,ARRIVA MIDLANDS NORTH LIMITED,13/04/2012,5478
Environmental Services,Highways & Transport,ETAE,Transport-Related Expenditure,Transport Contractors,ARRIVA MIDLANDS NORTH LIMITED,13/04/2012,5346
Environmental Services,Highways & Transport,ETAE,Transport-Related Expenditure,Transport Contractors,M H ELCOCK & SON LTD T/A ELCOCK REISEN,05/04/2012,595
Environmental Services,Highways & Transport,ETAE,Transport-Related Expenditure,Transport Contractors,M H ELCOCK & SON LTD T/A ELCOCK REISEN,04/04/2012,3230.08
Environmental Services,Highways & Transport,ETAE,Transport-Related Expenditure,Transport Contractors,M H ELCOCK & SON LTD T/A ELCOCK REISEN,04/04/2012,2560
Environmental Services,Highways & Transport,ETAE,Transport-Related Expenditure,Transport Contractors,M H ELCOCK & SON LTD T/A ELCOCK REISEN,04/04/2012,828.16
Environmental Services,Highways & Transport,ETAE,Transport-Related Expenditure,Transport Contractors,M H ELCOCK & SON LTD T/A ELCOCK REISEN,04/04/2012,3727.04
Environmental Services,Highways & Transport,ETAE,Transport-Related Expenditure,Transport Contractors,RIVERSIDE COACHWAYS,24/04/2012,520
Environmental Services,Highways & Transport,ETAE,Transport-Related Expenditure,Transport Contractors,M H ELCOCK & SON LTD T/A ELCOCK REISEN,20/04/2012,11388.08
Environmental Services,Highways & Transport,ETAE,Transport-Related Expenditure,Transport Contractors,M H ELCOCK & SON LTD T/A ELCOCK REISEN,20/04/2012,1138.72
Environmental Services,Highways & Transport,ETAE,Transport-Related Expenditure,Transport Contractors,M H ELCOCK & SON LTD T/A ELCOCK REISEN,20/04/2012,5124.68
Environmental Services,Highways & Transport,ETAE,Transport-Related Expenditure,Transport Contractors,M H ELCOCK & SON LTD T/A ELCOCK REISEN,20/04/2012,3800
Environmental Services,Highways & Transport,ETAF,Transport-Related Expenditure,Transport Contractors,ARRIVA MIDLANDS NORTH LIMITED,13/04/2012,6221.2
Environmental Services,Highways & Transport,ETAF,Transport-Related Expenditure,Transport Contractors,ARRIVA MIDLANDS NORTH LIMITED,13/04/2012,6971.01
Environmental Services,Highways & Transport,ETAF,Transport-Related Expenditure,Transport Contractors,M H ELCOCK & SON LTD T/A ELCOCK REISEN,13/04/2012,4316.52
Environmental Services,Highways & Transport,ETAF,Transport-Related Expenditure,Transport Contractors,ARRIVA MIDLANDS NORTH LIMITED,13/04/2012,6662.79
Environmental Services,Highways & Transport,ETAF,Transport-Related Expenditure,Transport Contractors,ARRIVA MIDLANDS NORTH LIMITED,11/04/2012,10000
Environmental Services,Highways & Transport,ETAG,Transport-Related Expenditure,Servicing & Repairs V&P,GREENHOUS VOLKSWAGEN VAN CENTRE,11/04/2012,1328
Environmental Services,Highways & Transport,ETAG,Transport-Related Expenditure,Servicing & Repairs V&P,Bodyshop Express,04/04/2012,667.27
Environmental Services,Highways & Transport,ETAG,Transport-Related Expenditure,Vehicle Parts,GREENHOUS VOLKSWAGEN VAN CENTRE,11/04/2012,5564.24
Environmental Services,Highways & Transport,ETAH,Supplies & Services,Equipment - Hire,Logical Transport Ltd,11/04/2012,47630
Environmental Services,Highways & Transport,ETAL,Premises-Related Expenditure,R&M -Buildings DLO Charge,JACOBS ENGINEERING UK LIMITED,13/04/2012,10000
Environmental Services,Highways & Transport,ETAL,Supplies & Services,Marketing & Publicity,BRIGHTER BUSINESS SOLUTIONS (UK) LTD,20/04/2012,1100
Environmental Services,Highways & Transport,WCAP,Capital Expenditure,Payments to Contractor,MCPHILLIPS (WELLINGTON) LTD,13/04/2012,13848.22
Environmental Services,Highways & Transport,WCAP,Capital Expenditure,Payments to Contractor,MCPHILLIPS (WELLINGTON) LTD,30/04/2012,80696.01
Environmental Services,Highways & Transport,WEAR,Capital Expenditure,Payments to Contractor,TELFORD & WREKIN SERVICES LTD,13/04/2012,36963.18
Environmental Services,Highways & Transport,WEAR,Capital Expenditure,Payments to Contractor,WPD MIDLANDS NETWORKS SERVICES LTD,13/04/2012,8072.84
Environmental Services,Highways & Transport,WEAR,Capital Expenditure,Payments to Contractor,MCPHILLIPS (WELLINGTON) LTD,13/04/2012,143308.56
Family & Community Services,Early Years Childcare,GEAA,Third Party Payments,Voluntary Bodies,TOTS AND TODDLERS DAYCARE,12/04/2012,2382
Family & Community Services,Early Years Childcare,GEAA,Third Party Payments,Voluntary Bodies,ABACUS (DAWLEY) LTD,12/04/2012,582
Family & Community Services,Early Years Childcare,GEAA,Third Party Payments,Voluntary Bodies,RANDLAY ROUNDABOUTS ,12/04/2012,1746
Family & Community Services,Early Years Childcare,GEAA,Third Party Payments,Voluntary Bodies,DAISY CHAIN DAY CARE LTD,12/04/2012,1746
Family & Community Services,Early Years Childcare,GEAA,Third Party Payments,Voluntary Bodies,ABC DAY NURSERY LTD ,12/04/2012,1164
Family & Community Services,Early Years Childcare,GEAA,Third Party Payments,Voluntary Bodies,STEPPING STONES AT CAPTAIN WEBB,12/04/2012,582
Family & Community Services,Early Years Childcare,GEAA,Third Party Payments,Voluntary Bodies,STRAWBERRY HILL DAY NURSERY,12/04/2012,582
Family & Community Services,Early Years Childcare,GEAA,Third Party Payments,Voluntary Bodies,SMILEY FACES DAY NURSERIES LTD,12/04/2012,582
Family & Community Services,Early Years Childcare,GEAA,Third Party Payments,Voluntary Bodies,ABC DAY NURSERY HOLLINSWOOD ,12/04/2012,1164
Family & Community Services,Early Years Childcare,GEAA,Third Party Payments,Voluntary Bodies,CHILDCARE SOS,12/04/2012,1164
Family & Community Services,Early Years Childcare,GEAA,Third Party Payments,Voluntary Bodies,CHIPMUNKS NURSERY,12/04/2012,1273.13
Family & Community Services,Early Years Childcare,GEAA,Third Party Payments,Voluntary Bodies,HADLEY UNDER 5'S ,12/04/2012,582
Family & Community Services,Early Years Childcare,GEAA,Third Party Payments,Voluntary Bodies,EARLYWORLD LIMITED ,04/04/2012,654.75
Family & Community Services,Early Years Childcare,GEAC,Third Party Payments,Pre School Playgroups,CENTRAL PARK NURSERY ,12/04/2012,11747.34
Family & Community Services,Early Years Childcare,GEAC,Third Party Payments,Pre School Playgroups,ABC DAY NURSERY LTD ,12/04/2012,10726.2
Family & Community Services,Early Years Childcare,GEAC,Third Party Payments,Pre School Playgroups,CHIPMUNKS NURSERY,12/04/2012,21270.06
Family & Community Services,Early Years Childcare,GEAC,Third Party Payments,Pre School Playgroups,Busy Bees Day Nursery Telford,12/04/2012,16394.4
Family & Community Services,Early Years Childcare,GEAC,Third Party Payments,Pre School Playgroups,TOTS AND TODDLERS DAYCARE,12/04/2012,15771.69
Family & Community Services,Early Years Childcare,GEAC,Third Party Payments,Pre School Playgroups,WOODEN TOPS DAY NURSERY ,12/04/2012,11858.4
Family & Community Services,Early Years Childcare,GEAC,Third Party Payments,Pre School Playgroups,DAISY CHAIN @ OLD HALL,12/04/2012,13643.04
Family & Community Services,Early Years Childcare,GEAC,Third Party Payments,Pre School Playgroups,REDHILL NURSERY,24/04/2012,13331.1
Family & Community Services,Early Years Childcare,GEAC,Third Party Payments,Pre School Playgroups,REDHILL NURSERY,24/04/2012,12358.29
Family & Community Services,Early Years Childcare,GEAC,Third Party Payments,Pre School Playgroups,CASTLE HOUSE SCHOOL TRUST LTD,05/04/2012,7933.59
Family & Community Services,Early Years Childcare,GEAC,Third Party Payments,Pre School Playgroups,REDACTED PERSONAL INFORMATION,19/04/2012,869.4
Family & Community Services,Early Years Childcare,GEAC,Third Party Payments,Pre School Playgroups,REDACTED PERSONAL INFORMATION,19/04/2012,584.64
Family & Community Services,Early Years Childcare,GEAC,Third Party Payments,Pre School Playgroups,REDACTED PERSONAL INFORMATION,19/04/2012,622.8
Family & Community Services,Early Years Childcare,GEAC,Third Party Payments,Pre School Playgroups,REDACTED PERSONAL INFORMATION,19/04/2012,743.04
Family & Community Services,Early Years Childcare,GEAC,Third Party Payments,Pre School Playgroups,REDACTED PERSONAL INFORMATION,19/04/2012,909.9
Family & Community Services,Early Years Childcare,GEAC,Third Party Payments,Pre School Playgroups,CLUB 0-5 LTD ,05/04/2012,7683.84
Family & Community Services,Early Years Childcare,GEAC,Third Party Payments,Pre School Playgroups,COALBROOKDALE & I'BRIDGE NURS,05/04/2012,7909.56
Family & Community Services,Early Years Childcare,GEAC,Third Party Payments,Pre School Playgroups,CYGNETS PRE-SCHOOL,05/04/2012,9688.32
Family & Community Services,Early Years Childcare,GEAC,Third Party Payments,Pre School Playgroups,DAISY CHAIN DAY CARE LTD,05/04/2012,8435.52
Family & Community Services,Early Years Childcare,GEAC,Third Party Payments,Pre School Playgroups,EARLYWORLD LIMITED ,05/04/2012,8292.24
Family & Community Services,Early Years Childcare,GEAC,Third Party Payments,Pre School Playgroups,SMILEY FACES DAY NURSERIES LTD,05/04/2012,6989.4
Family & Community Services,Early Years Childcare,GEAC,Third Party Payments,Pre School Playgroups,STEPPING STONES AT CAPTAIN WEBB,05/04/2012,8743.68
Family & Community Services,Early Years Childcare,GEAC,Third Party Payments,Pre School Playgroups,STRAWBERRY HILL DAY NURSERY,05/04/2012,4536
Family & Community Services,Early Years Childcare,GEAC,Third Party Payments,Pre School Playgroups,BEARS DEN PRE-SCHOOL ,05/04/2012,9198
Family & Community Services,Early Years Childcare,GEAC,Third Party Payments,Pre School Playgroups,EDGMOND OWLS ,05/04/2012,8638.92
Family & Community Services,Early Years Childcare,GEAC,Third Party Payments,Pre School Playgroups,LITTLE BODIES DAY NURSERY,05/04/2012,4276.56
Family & Community Services,Early Years Childcare,GEAC,Third Party Payments,Pre School Playgroups,LITTLE DRAGONS PRE-SCHOOL ,05/04/2012,5670
Family & Community Services,Early Years Childcare,GEAC,Third Party Payments,Pre School Playgroups,LONGFORD PLAYGROUP,05/04/2012,6228
Family & Community Services,Early Years Childcare,GEAC,Third Party Payments,Pre School Playgroups,PLAY-DAYS CORPORTION LTD,05/04/2012,5655.36
Family & Community Services,Early Years Childcare,GEAC,Third Party Payments,Pre School Playgroups,ABACUSDAY NURSERY,05/04/2012,1895.4
Family & Community Services,Early Years Childcare,GEAC,Third Party Payments,Pre School Playgroups,HALESFIELD DAY NURSERY CENTRE ,05/04/2012,9261
Family & Community Services,Early Years Childcare,GEAC,Third Party Payments,Pre School Playgroups,HIGH ERCALL PRE-SCHOOL ,05/04/2012,4386
Family & Community Services,Early Years Childcare,GEAC,Third Party Payments,Pre School Playgroups,ABACUS DAY NURSERY ,05/04/2012,4059.9
Family & Community Services,Early Years Childcare,GEAC,Third Party Payments,Pre School Playgroups,KIDS 4 US ,05/04/2012,5295
Family & Community Services,Early Years Childcare,GEAC,Third Party Payments,Pre School Playgroups,LADYGROVE NURSERY,05/04/2012,5054.4
Family & Community Services,Early Years Childcare,GEAC,Third Party Payments,Pre School Playgroups,LEEGOMERY UNDER 5'S PLAYGROUP,05/04/2012,6002.1
Family & Community Services,Early Years Childcare,GEAC,Third Party Payments,Pre School Playgroups,LILLESHALL PRE-SCHOOL PLAYGROUP,05/04/2012,8369.64
Family & Community Services,Early Years Childcare,GEAC,Third Party Payments,Pre School Playgroups,CHILDCARE SOS,05/04/2012,4842.72
Family & Community Services,Early Years Childcare,GEAC,Third Party Payments,Pre School Playgroups,OAKENGATES UNITED PRE-SCHOOL,05/04/2012,1071
Family & Community Services,Early Years Childcare,GEAC,Third Party Payments,Pre School Playgroups,OUR WORLD NEIGHBOURHOOD NURSERY ,05/04/2012,6354
Family & Community Services,Early Years Childcare,GEAC,Third Party Payments,Pre School Playgroups,RANDLAY ROUNDABOUTS,05/04/2012,2994.84
Family & Community Services,Early Years Childcare,GEAC,Third Party Payments,Pre School Playgroups,THE LEARNING TREE PRE-SCHOOL ,05/04/2012,7736.63
Family & Community Services,Early Years Childcare,GEAC,Third Party Payments,Pre School Playgroups,LITTLE CHICKS PRE-SCHOOL,05/04/2012,8359.2
Family & Community Services,Early Years Childcare,GEAC,Third Party Payments,Pre School Playgroups,APPLE TREES NURSERY ,04/04/2012,666
Family & Community Services,Early Years Childcare,GEAC,Third Party Payments,Pre School Playgroups,THOMAS TELFORD SCHOOL ,10/04/2012,2498.4
Family & Community Services,Early Years Childcare,GEAC,Third Party Payments,Pre School Playgroups,THOMAS TELFORD SCHOOL ,10/04/2012,624.6
Family & Community Services,Early Years Childcare,GEAC,Third Party Payments,Pre School Playgroups,TIBBERTON PLAYGROUP ,10/04/2012,1764.72
Family & Community Services,Early Years Childcare,GEAC,Third Party Payments,Pre School Playgroups,TIGGYWINKLES MONTESSORI NURSERY,10/04/2012,3395.7
Family & Community Services,Early Years Childcare,GEAC,Third Party Payments,Pre School Playgroups,TIGGYWINKLES MONTESSORI NURSERY,10/04/2012,3087
Family & Community Services,Early Years Childcare,GEAC,Third Party Payments,Pre School Playgroups,ABACUS (DAWLEY) LTD,10/04/2012,6652.8
Family & Community Services,Early Years Childcare,GEAC,Third Party Payments,Pre School Playgroups,ABACUS (DAWLEY) LTD ,10/04/2012,2534.4
Family & Community Services,Early Years Childcare,GEAC,Third Party Payments,Pre School Playgroups,PUDDLEDUCKS PLAYGROUP ,10/04/2012,6251.82
Family & Community Services,Early Years Childcare,GEAC,Third Party Payments,Pre School Playgroups,PUDDLEDUCKS PLAYGROUP,10/04/2012,3570.48
Family & Community Services,Early Years Childcare,GEAC,Third Party Payments,Pre School Playgroups,BUTTERFLIES DAY NURSERY,10/04/2012,9811.8
Family & Community Services,Early Years Childcare,GEAC,Third Party Payments,Pre School Playgroups,PRIORSLEE PRE-SCHOOL,12/04/2012,10278.72
Family & Community Services,Early Years Childcare,GEAC,Third Party Payments,Pre School Playgroups,HONEYBUNS NURSERIES,12/04/2012,26606.34
Family & Community Services,Early Years Childcare,GEAC,Third Party Payments,Pre School Playgroups,REDHILL PRE-SCHOOL ,12/04/2012,12358.29
Family & Community Services,Early Years Childcare,GEAC,Third Party Payments,Pre School Playgroups,EARLYWORLD LIMITED ,12/04/2012,13763.88
Family & Community Services,Early Years Childcare,GEAC,Third Party Payments,Pre School Playgroups,TEAGUES BRIDGE PRE-SCHOOL ,12/04/2012,10080
Family & Community Services,Early Years Childcare,GEAC,Third Party Payments,Pre School Playgroups,NOAH'S ARK NURS & AFTER SCH CLUB,12/04/2012,19607.82
Family & Community Services,Early Years Childcare,GEAC,Third Party Payments,Pre School Playgroups,HADLEY UNDER 5'S ,12/04/2012,10272.3
Family & Community Services,Early Years Childcare,GEAC,Third Party Payments,Pre School Playgroups,ABC DAY NURSERY HOLLINSWOOD ,05/04/2012,4473
Family & Community Services,Early Years Childcare,GEAC,Third Party Payments,Pre School Playgroups,ABC DAY NURSERY ,05/04/2012,7503.75
Family & Community Services,Early Years Childcare,GEAC,Third Party Payments,Pre School Playgroups,APPLE TREES NURSERY ,05/04/2012,1841.4
Family & Community Services,Early Years Childcare,GEAC,Third Party Payments,Pre School Playgroups,BROOKSIDE PRE-SCHOOL & PLAYGROUP,05/04/2012,3424.86
Family & Community Services,Early Years Childcare,GEAC,Third Party Payments,Pre School Playgroups,BUSY BEES AT TELFORD PARKWAY,11/04/2012,7638.3
Family & Community Services,Early Years Childcare,GEAC,Third Party Payments,Pre School Playgroups,THE OLD HALL SCHOOL ,05/04/2012,5196.45
Family & Community Services,Early Years Childcare,GEAC,Third Party Payments,Pre School Playgroups,TORTOISE NURSERY SCHOOL ,05/04/2012,5479.92
Family & Community Services,Early Years Childcare,GEAC,Third Party Payments,Pre School Playgroups,TRENCH TOTS NEIGHBOURHOOD NURSERY LTD,05/04/2012,7128
Family & Community Services,Early Years Childcare,GEAC,Third Party Payments,Pre School Playgroups,B) WT'ON METHODIST CHURCH PLAYGR,05/04/2012,6265.8
Family & Community Services,Early Years Childcare,GEAD,Supplies & Services,Computer Software (Maint),CACI LTD,05/04/2012,7492.26
Family & Community Services,Early Years Childcare,GEAD,Support Services,Personnel Unit,TELFORD & WREKIN C V S,12/04/2012,11750
Family & Community Services,Early Years Childcare,HCAB,Supplies & Services,Other Services,RELATE SHROPSHIRE & HEREFORDSHIRE LTD,23/04/2012,80000
Family & Community Services,Extended Services,JCAB,Supplies & Services,Supportive Lodgings,NEXT STEP CARE MANAGEMENT LTD,10/04/2012,1450
Family & Community Services,Extended Services,JCAB,Supplies & Services,Supportive Lodgings,LEAVING CARE COMPANY,10/04/2012,-1335.19
Family & Community Services,Extended Services,JCAB,Supplies & Services,Supportive Lodgings,LEAVING CARE COMPANY,10/04/2012,-1122.66
Family & Community Services,Extended Services,JCAB,Supplies & Services,Supportive Lodgings,LEAVING CARE COMPANY,10/04/2012,-796.89
Family & Community Services,Extended Services,JCAB,Supplies & Services,Supportive Lodgings,LEAVING CARE COMPANY,10/04/2012,-583.99
Family & Community Services,Extended Services,JCAB,Supplies & Services,Supportive Lodgings,LEAVING CARE COMPANY,13/04/2012,3653.57
Family & Community Services,Extended Services,JCAB,Supplies & Services,Supportive Lodgings,LEAVING CARE COMPANY,13/04/2012,2575.29
Family & Community Services,Extended Services,JCAB,Supplies & Services,Supportive Lodgings,LEAVING CARE COMPANY,13/04/2012,2750.14
Family & Community Services,Extended Services,JCAB,Supplies & Services,Supportive Lodgings,LEAVING CARE COMPANY,13/04/2012,2750.14
Family & Community Services,Extended Services,JCAB,Supplies & Services,Supportive Lodgings,LEAVING CARE COMPANY,10/04/2012,644.21
Family & Community Services,Extended Services,JCAB,Supplies & Services,Supportive Lodgings,LEAVING CARE COMPANY,13/04/2012,-2223.09
Family & Community Services,Extended Services,JCAB,Supplies & Services,Supportive Lodgings,LEAVING CARE COMPANY,13/04/2012,2750.14
Family & Community Services,Extended Services,JCAB,Supplies & Services,Supportive Lodgings,LEAVING CARE COMPANY,13/04/2012,-3249.81
Family & Community Services,Extended Services,JCAB,Supplies & Services,Supportive Lodgings,LEAVING CARE COMPANY,13/04/2012,9654.29
Family & Community Services,Extended Services,JCAB,Supplies & Services,Supportive Lodgings,LEAVING CARE COMPANY,13/04/2012,4432.5
Family & Community Services,Extended Services,JCAB,Supplies & Services,Supportive Lodgings,LEAVING CARE COMPANY,13/04/2012,2612.86
Family & Community Services,Extended Services,JCAB,Supplies & Services,Supportive Lodgings,LEAVING CARE COMPANY,13/04/2012,1846.71
Family & Community Services,Extended Services,JCAB,Supplies & Services,Supportive Lodgings,LEAVING CARE COMPANY,13/04/2012,2863.07
Family & Community Services,Extended Services,JCAB,Supplies & Services,Supportive Lodgings,LEAVING CARE COMPANY,10/04/2012,2678.36
Family & Community Services,Safer Communities,GCAA,Supplies & Services,Marketing & Publicity,RMP SPECIALIST SERVICES LIMITED,11/04/2012,1000
Family & Community Services,Safer Communities,GCAF,Supplies & Services,Security Services,ADT FIRE & SECURITY PLC,05/04/2012,3626
Finance,Employment Services,FEAB,Supplies & Services,Subscriptions,CHART INST PUBLIC FINANCE & ACCOUNTANCY,23/04/2012,600
Finance,Employment Services,FEAC,Employees,Recruitment Interview,CRIMINAL RECORDS BUREAU,23/04/2012,5002
Finance,Employment Services,FEAD,Supplies & Services,Advertising,PENNA PLC,26/04/2012,709.09
Finance,Finance,FHAB,Supplies & Services,Other Services,ALLPAY.NET LIMITED,16/04/2012,1167.15
Finance,Finance,FHAD,Support Services,External Audit Fees,KPMG LLP,11/04/2012,551
Finance,Finance,FHAD,Support Services,External Audit Fees,KPMG LLP,03/04/2012,64620
Finance,Finance Manager (Corporate Finance & Customer Services),FFAE,Supplies & Services,Miscellaneous Insurance,MOTOR ACCIDENT PROTECTION SERVICES LTD,18/04/2012,582.07
Finance,Finance Manager (Corporate Finance & Customer Services),MAAC,Employees,Agency Supply Costs,COMENSURA LTD,10/04/2012,32736.91
Finance,Finance Manager (Corporate Finance & Customer Services),MAAC,Employees,Agency Supply Costs,COMENSURA LTD,25/04/2012,34450.3
Finance,Finance Manager (Corporate Finance & Customer Services),MAAC,Employees,Agency Supply Costs,COMENSURA LTD,25/04/2012,23145.47
Finance,Finance Manager (Corporate Finance & Customer Services),MAAC,Employees,Agency Supply Costs,COMENSURA LTD,25/04/2012,15044.65
Governance,Audit & Assurance,BAAA,Supplies & Services,Subscriptions/ Benchmarking,CIPFA BUSINESS LTD,26/04/2012,600
Governance,Democratic Services,BDAB,Supplies & Services,Comp Hardware (Purch / Hire),SYNETRIX LTD,11/04/2012,674
Governance,Democratic Services,BDAB,Supplies & Services,Subscriptions,LOCAL GOVERNMENT ASSOCIATION,18/04/2012,39785.57
Governance,Democratic Services,BDAE,Supplies & Services,Computer Software (Maint),XPRESS SOFTWARE SOLUTIONS LTD,18/04/2012,13769.88
Governance,Legal Services,BLAB,Supplies & Services,Publications,LEXIS NEXIS,18/04/2012,6848.8
Governance,Legal Services,BLAB,Supplies & Services,Urgent Court Costs,TELF & WREKIN LEGAL SECTION URGENT A/C,25/04/2012,1000
Governance,Legal Services,BLAB,Supplies & Services,legal services,WACE MORGAN SOLICITORS,16/04/2012,975
Governance,Legal Services,BLAB,Supplies & Services,legal services,WACE MORGAN SOLICITORS,20/04/2012,990
Governance,Legal Services,BLAB,Supplies & Services,legal services,WACE MORGAN SOLICITORS,20/04/2012,1252.5
Governance,Legal Services,BLAB,Supplies & Services,Other Expenses,CIPFA BUSINESS LTD,18/04/2012,600
Housing & Planning,Development Management,DDAA,Supplies & Services,Comp Hardware (Purch / Hire),RASTEREX SOFTWARE A.S.,23/04/2012,6465
Housing & Planning,Development Management,DDAC,Training-Related Expenditure,Training Course,GOVNET COMMUNICATIONS,11/04/2012,518.5
Housing & Planning,Development Management,DDAG,Supplies & Services,Photocopying,DATASAVE LIMITED,11/04/2012,5469.93
Housing & Planning,Development Management,DDAG,Supplies & Services,Photocopying,RESOLUTION DATA MANAGEMENT LTD,18/04/2012,507.96
Housing & Planning,Development Management,DDAG,Supplies & Services,Publications,HAYMARKET PUBLISHING SERVICES LTD,26/04/2012,780
Housing & Planning,"Environmental Health, Trading Standards & Licensing",DEAA,Support Services,Legal And Admin Services,MARTIN SHENTON & CO LTD,23/04/2012,645.14
Housing & Planning,"Environmental Health, Trading Standards & Licensing",DEAB,Supplies & Services,Printing - Other,BRAISWICK PHOTOGRAPHIC CO LTD,11/04/2012,605
Housing & Planning,Housing,DHAC,Supplies & Services,Books,DESTIN SOLUTIONS LTD,12/04/2012,673
Housing & Planning,Housing,DHAF,Premises-Related Expenditure,Bed & Breakfast Charges,THE GALLERY GUEST HOUSE,10/04/2012,640
Housing & Planning,Housing,DHAF,Premises-Related Expenditure,Bed & Breakfast Charges,THE FIRS GUEST HOUSE,10/04/2012,660
Housing & Planning,Housing,DHAF,Premises-Related Expenditure,Bed & Breakfast Charges,OLD VICARAGE,10/04/2012,2170
Housing & Planning,Housing,DHAF,Premises-Related Expenditure,Bed & Breakfast Charges,THE GALLERY GUEST HOUSE,16/04/2012,560
Housing & Planning,Housing,DHAF,Premises-Related Expenditure,Bed & Breakfast Charges,THE FIRS GUEST HOUSE,16/04/2012,1210
Housing & Planning,Housing,DHAF,Premises-Related Expenditure,Bed & Breakfast Charges,THE FIRS GUEST HOUSE,20/04/2012,1250
Housing & Planning,Housing,DHAF,Premises-Related Expenditure,Bed & Breakfast Charges,THE GALLERY GUEST HOUSE,20/04/2012,640
Housing & Planning,Housing,DHAG,Premises-Related Expenditure,Leasehold Rents,REDACTED PERSONAL INFORMATION,19/04/2012,506.7
Housing & Planning,Housing,DHAJ,Premises-Related Expenditure,Gas,WEST MERCIA SUPPLIES Catalogue Supplies ,10/04/2012,-577.03
Housing & Planning,Housing,DHAJ,Premises-Related Expenditure,Gas,WEST MERCIA SUPPLIES Catalogue Supplies ,10/04/2012,809.46
Housing & Planning,Housing,DHAJ,Supplies & Services,Security Services,RMP SPECIALIST SERVICES LIMITED,16/04/2012,2406.25
Housing & Planning,Housing,DHAM,Premises-Related Expenditure,R&M -Buildings DLO Charge,TEMPERTON AND TEMPERTON,10/04/2012,1000
Housing & Planning,Housing,DHAP,Premises-Related Expenditure,Planned Repairs,WEST MERCIA SUPPLIES Catalogue Supplies ,10/04/2012,1582.97
Housing & Planning,Housing,DHAP,Premises-Related Expenditure,Electricity,WEST MERCIA SUPPLIES Catalogue Supplies ,10/04/2012,2164.51
Housing & Planning,Housing,DHAP,Supplies & Services,Legal Expenses,TELF & WREKIN LEGAL SECTION URGENT A/C,25/04/2012,810
Housing & Planning,Housing,DHAT,HIA- Subscription to Ferrett System for Disabled Facilities Grant calculations,Subscriptions,FERRET INFORMATION SYSTEMS,27/04/2012,513
Housing & Planning,Housing,DHAW,HIA- Health Through Warmth payment for new boiler,Other Grants (Expenses),PILOT HEAT,19/04/2012,1033.95
Housing & Planning,Housing,DHAW,HIA- Health Through Warmth payment for new boiler,Other Grants (Expenses),SEAN BYRNE,16/04/2012,1450
Housing & Planning,Housing,DSAA,,Employee Costs Recharged,PARK LANE CENTRE,16/04/2012,1155
Housing & Planning,Housing,WDAD,,Other Capital Expenditure,JAG OF ALL TRADES LTD,10/04/2012,515
Housing & Planning,Housing,WDAF,HIA- Ground investigation works for Disabled Facilities Grant,Other Capital Expenditure,GROUND INVESTIGATION & PILING LTD,30/04/2012,2577
Housing & Planning,Housing,WDAF,HIA- 60% contribution towards Disabled Facilities Grant ,Other Capital Expenditure,THE WREKIN HOUSING TRUST,27/04/2012,856.37
Housing & Planning,Housing,WDAF,HIA- 60% contribution towards Disabled Facilities Grant ,Other Capital Expenditure,THE WREKIN HOUSING TRUST,27/04/2012,712.08
Housing & Planning,Housing,WDAF,HIA- Disabled Facilities grant payments or stairlifts,Other Capital Expenditure,STANNAH LIFT SERVICES LTD,16/04/2012,4869
Housing & Planning,Housing,WDAF,HIA- Disabled Facilities grant payments or stairlifts,Other Capital Expenditure,STANNAH LIFT SERVICES LTD,16/04/2012,1295
Housing & Planning,Housing,WDAF,HIA- Disabled Facilities grant payments or stairlifts,Other Capital Expenditure,STANNAH LIFT SERVICES LTD,16/04/2012,3716
Housing & Planning,Housing,WDAF,HIA- 60% contribution towards Disabled Facilities Grant ,Other Capital Expenditure,THE WREKIN HOUSING TRUST,23/04/2012,2441.52
Housing & Planning,Housing,WDAF,HIA- 60% contribution towards Disabled Facilities Grant ,Other Capital Expenditure,THE WREKIN HOUSING TRUST,23/04/2012,1630.07
Housing & Planning,Housing,WDAF,HIA- 60% contribution towards Disabled Facilities Grant ,Other Capital Expenditure,THE WREKIN HOUSING TRUST,23/04/2012,1150.31
Housing & Planning,Housing,WDAF,HIA- 60% contribution towards Disabled Facilities Grant ,Other Capital Expenditure,THE WREKIN HOUSING TRUST,23/04/2012,714.61
Housing & Planning,Housing,WDAF,HIA- 60% contribution towards Disabled Facilities Grant ,Other Capital Expenditure,THE WREKIN HOUSING TRUST,23/04/2012,1694.05
Housing & Planning,Housing,WDAF,HIA- 60% contribution towards Disabled Facilities Grant ,Other Capital Expenditure,THE WREKIN HOUSING TRUST,23/04/2012,2124.6
Housing & Planning,Housing,WDAF,HIA- 60% contribution towards Disabled Facilities Grant ,Other Capital Expenditure,THE WREKIN HOUSING TRUST,23/04/2012,1208.16
Housing & Planning,Housing,WDAF,HIA- 60% contribution towards Disabled Facilities Grant ,Other Capital Expenditure,THE WREKIN HOUSING TRUST,23/04/2012,1178.97
Housing & Planning,Housing,WDAF,HIA- 60% contribution towards Disabled Facilities Grant ,Other Capital Expenditure,THE WREKIN HOUSING TRUST,23/04/2012,714.24
Housing & Planning,Housing,WDAF,HIA- Disabled Facilities grant payments or stairlifts,Other Capital Expenditure,STANNAH LIFT SERVICES LTD,18/04/2012,1370
Housing & Planning,Housing,WDAF,HIA- 60% contribution towards Disabled Facilities Grant ,Other Capital Expenditure,THE WREKIN HOUSING TRUST,18/04/2012,594.72
Housing & Planning,Housing,WDAF,HIA- 60% contribution towards Disabled Facilities Grant ,Other Capital Expenditure,THE WREKIN HOUSING TRUST,19/04/2012,768.96
Housing & Planning,Housing,WDAF,HIA- Disabled Facilities grant payment for works at a clients property ,Other Capital Expenditure,REDACTED PERSONAL INFORMATION,19/04/2012,1992.76
Housing & Planning,Housing,WDAF,HIA- Disabled Facilities grant payment for works at a clients property ,Other Capital Expenditure,WILCOX PLUMBING & HEATING,19/04/2012,3602.52
Housing & Planning,Housing,WDAF,HIA- 60% contribution towards Disabled Facilities Grant ,Other Capital Expenditure,THE WREKIN HOUSING TRUST,18/04/2012,1353.95
Housing & Planning,Housing,WDAF,HIA- 60% contribution towards Disabled Facilities Grant ,Other Capital Expenditure,THE WREKIN HOUSING TRUST,18/04/2012,840.76
Housing & Planning,Housing,WDAF,HIA- Disabled Facilities grant payment for works at a clients property ,Other Capital Expenditure,WILCOX PLUMBING & HEATING,18/04/2012,3958
Housing & Planning,Housing,WDAF,HIA- 60% contribution towards Disabled Facilities Grant ,Other Capital Expenditure,THE WREKIN HOUSING TRUST,18/04/2012,1776.47
Housing & Planning,Housing,WDAF,HIA- 60% contribution towards Disabled Facilities Grant ,Other Capital Expenditure,THE WREKIN HOUSING TRUST,18/04/2012,1110.24
Housing & Planning,Housing,WDAF,HIA- 60% contribution towards Disabled Facilities Grant ,Other Capital Expenditure,THE WREKIN HOUSING TRUST,18/04/2012,1249.92
Housing & Planning,Housing,WDAF,HIA- 60% contribution towards Disabled Facilities Grant ,Other Capital Expenditure,THE WREKIN HOUSING TRUST,18/04/2012,1007.8
Housing & Planning,Housing,WDAF,HIA- 60% contribution towards Disabled Facilities Grant ,Other Capital Expenditure,THE WREKIN HOUSING TRUST,18/04/2012,600
Housing & Planning,Housing,WDAF,HIA- 60% contribution towards Disabled Facilities Grant ,Other Capital Expenditure,THE WREKIN HOUSING TRUST,18/04/2012,600
Housing & Planning,Housing,WDAF,HIA- Disabled Facilities grant payment for works at a clients property ,Other Capital Expenditure,ROSEMONT BUILDING CONTRACTORS,03/04/2012,5000
Housing & Planning,Housing,WDAF,HIA- Disabled Facilities grant payment for works at a clients property ,Other Capital Expenditure,AIDS & ADAPTIONS LTD,03/04/2012,4330.44
Housing & Planning,Housing,WDAF,HIA- Payment to client for Disabled Facilities Grant ,Other Capital Expenditure,REDACTED PERSONAL INFORMATION,03/04/2012,2418.89
Housing & Planning,Housing,WDAF,HIA- Credit from stannah for overpayment ,Other Capital Expenditure,STANNAH LIFT SERVICES LTD,12/04/2012,-1816
Housing & Planning,Housing,WDAF,HIA- 60% contribution towards Disabled Facilities Grant ,Other Capital Expenditure,THE WREKIN HOUSING TRUST,18/04/2012,600
Housing & Planning,Housing,WDAF,HIA- 60% contribution towards Disabled Facilities Grant ,Other Capital Expenditure,THE WREKIN HOUSING TRUST,18/04/2012,687.42
Housing & Planning,Housing,WDAF,HIA- 60% contribution towards Disabled Facilities Grant ,Other Capital Expenditure,THE WREKIN HOUSING TRUST,18/04/2012,748.43
Housing & Planning,Housing,WDAF,HIA- 60% contribution towards Disabled Facilities Grant ,Other Capital Expenditure,THE WREKIN HOUSING TRUST,27/04/2012,1351.33
Housing & Planning,Housing,WDAF,HIA- 60% contribution towards Disabled Facilities Grant ,Other Capital Expenditure,THE WREKIN HOUSING TRUST,27/04/2012,1201.87
Housing & Planning,Housing,WDAF,HIA- Disabled Facilities grant payment for works at a clients property ,Other Capital Expenditure,AIDS & ADAPTIONS LTD,18/04/2012,3295.95
Housing & Planning,Housing,WDAF,HIA- 60% contribution towards Disabled Facilities Grant ,Other Capital Expenditure,THE WREKIN HOUSING TRUST,18/04/2012,1121.29
Housing & Planning,Housing,WDAF,HIA- 60% contribution towards Disabled Facilities Grant ,Other Capital Expenditure,THE WREKIN HOUSING TRUST,18/04/2012,1555.16
Housing & Planning,Housing,WDAF,HIA- 60% contribution towards Disabled Facilities Grant ,Other Capital Expenditure,THE WREKIN HOUSING TRUST,18/04/2012,1981.81
Housing & Planning,Housing,WDAF,HIA- 60% contribution towards Disabled Facilities Grant ,Other Capital Expenditure,THE WREKIN HOUSING TRUST,18/04/2012,671.61
Housing & Planning,Housing,WDAF,HIA- 60% contribution towards Disabled Facilities Grant ,Other Capital Expenditure,THE WREKIN HOUSING TRUST,18/04/2012,2377.84
Housing & Planning,Housing,WDAF,HIA- 60% contribution towards Disabled Facilities Grant ,Other Capital Expenditure,THE WREKIN HOUSING TRUST,18/04/2012,1758.66
Housing & Planning,Housing,WDAF,HIA- 60% contribution towards Disabled Facilities Grant ,Other Capital Expenditure,THE WREKIN HOUSING TRUST,18/04/2012,1211.04
Housing & Planning,Housing,WDAF,HIA- 60% contribution towards Disabled Facilities Grant ,Other Capital Expenditure,THE WREKIN HOUSING TRUST,18/04/2012,2290.62
Housing & Planning,Housing,WDAF,HIA- 60% contribution towards Disabled Facilities Grant ,Other Capital Expenditure,THE WREKIN HOUSING TRUST,18/04/2012,600
Housing & Planning,Housing,WDAF,HIA- 60% contribution towards Disabled Facilities Grant ,Other Capital Expenditure,THE WREKIN HOUSING TRUST,18/04/2012,1493.4
Housing & Planning,Housing,WDAF,HIA- 60% contribution towards Disabled Facilities Grant ,Other Capital Expenditure,THE WREKIN HOUSING TRUST,18/04/2012,1401.12
Housing & Planning,Housing,WDAF,HIA- 60% contribution towards Disabled Facilities Grant ,Other Capital Expenditure,THE WREKIN HOUSING TRUST,18/04/2012,1493.47
Housing & Planning,Housing,WDAF,HIA- 60% contribution towards Disabled Facilities Grant ,Other Capital Expenditure,THE WREKIN HOUSING TRUST,18/04/2012,835.2
Housing & Planning,Housing,WDAF,HIA- Disabled Facilities grant payment for works at a clients property ,Other Capital Expenditure,ROSEMONT BUILDING CONTRACTORS,18/04/2012,2025
Housing & Planning,Housing,WDAF,HIA- Disabled Facilities grant payment for works at a clients property ,Other Capital Expenditure,REDACTED PERSONAL INFORMATION,18/04/2012,2125
Housing & Planning,Housing,WDAF,HIA- 60% contribution towards Disabled Facilities Grant ,Other Capital Expenditure,THE WREKIN HOUSING TRUST,18/04/2012,791.81
Housing & Planning,Housing,WDAF,HIA- 60% contribution towards Disabled Facilities Grant ,Other Capital Expenditure,THE WREKIN HOUSING TRUST,18/04/2012,644.93
Housing & Planning,Housing,WDAF,HIA- 60% contribution towards Disabled Facilities Grant ,Other Capital Expenditure,THE WREKIN HOUSING TRUST,18/04/2012,607.23
Housing & Planning,Housing,WDAF,HIA- 60% contribution towards Disabled Facilities Grant ,Other Capital Expenditure,THE WREKIN HOUSING TRUST,03/04/2012,-1256.08
Housing & Planning,Housing,WDAF,HIA- 60% contribution towards Disabled Facilities Grant ,Other Capital Expenditure,THE WREKIN HOUSING TRUST,27/04/2012,600
Housing & Planning,Housing,WDAF,HIA- 60% contribution towards Disabled Facilities Grant ,Other Capital Expenditure,THE WREKIN HOUSING TRUST,27/04/2012,1118
Housing & Planning,Housing,WDAF,HIA- 60% contribution towards Disabled Facilities Grant ,Other Capital Expenditure,THE WREKIN HOUSING TRUST,27/04/2012,600
Housing & Planning,Housing,WDAF,HIA- Disabled Facilities grant payment for 8 Board Close,Other Capital Expenditure,E DAVIES & SON,30/04/2012,12000
Housing & Planning,Housing,WDSP,Capital Expenditure,Payments to Contractor,FITZGERALD CONTRACTORS LTD,16/04/2012,15931.69
Housing & Planning,Housing,WDSQ,Capital Expenditure,Payments to Contractor,SEAN BYRNE,16/04/2012,1800
Housing & Planning,Strategic Housing,EWAD,Supplies & Services,Other Services,SITA UK,30/04/2012,6375.63
Housing & Planning,Strategic Housing,EWAD,Supplies & Services,Other Services,SITA UK,19/04/2012,2104.88
Housing & Planning,Strategic Housing,EWAD,Third Party Payments,DSO Contractor Recharge,SITA UK,13/04/2012,4484.46
Housing & Planning,Strategic Housing,EWAD,Third Party Payments,DSO Contractor Recharge,SITA UK,19/04/2012,4484.46
Housing & Planning,Strategic Housing,EWAK,Supplies & Services,Research Surveys,SITA UK,04/04/2012,1199.22
Housing & Planning,Strategic Housing,WDSE,Capital Expenditure,Payments to Contractor,M & S Taylor Builders,16/04/2012,36500
Housing & Planning,Strategic Housing,WDSE,Capital Expenditure,Site Investigation,MCPHILLIPS (WELLINGTON) LTD,19/04/2012,2283.52
Housing & Planning,Strategic Housing,WDSE,Capital Expenditure,Payments to Contractor,CLARKES SOLICITORS,30/04/2012,240000
Housing & Planning,Strategic Housing,WDSG,Capital Expenditure,Other Capital Expenditure,BOURNVILLE VILLAGE TRUST,26/04/2012,12750
Housing & Planning,Strategic Housing,WDSG,Capital Expenditure,Other Capital Expenditure,TELFORD & WREKIN CITIZENS ADVICE BUREAU,27/04/2012,6740.32
Housing & Planning,Strategic Housing,WDSG,Capital Expenditure,Other Capital Expenditure,BOURNVILLE VILLAGE TRUST,27/04/2012,6375
Property & ICT,Building Schools for the Future (BSF),WGAD,Capital Expenditure,External Professional Fees,MOTT MACDONALD LIMITED,12/04/2012,4290.65
Property & ICT,Building Schools for the Future (BSF),WGAE,Capital Expenditure,External Professional Fees,MOTT MACDONALD LIMITED,12/04/2012,811.17
Property & ICT,Building Schools for the Future (BSF),WGAG,Capital Expenditure,External Professional Fees,MOTT MACDONALD LIMITED,12/04/2012,2731.11
Property & ICT,Building Schools for the Future (BSF),WGAG,Capital Expenditure,Payments to Contractor,KIER CONSTRUCTION LTD,16/04/2012,84482.94
Property & ICT,Building Schools for the Future (BSF),WGAG,Capital Expenditure,Payments to Contractor,KIER CONSTRUCTION LTD,26/04/2012,107111.27
Property & ICT,Building Schools for the Future (BSF),WGAJ,Capital Expenditure,External Professional Fees,MOTT MACDONALD LIMITED,12/04/2012,1174.05
Property & ICT,Building Schools for the Future (BSF),WGAP,Capital Expenditure,External Professional Fees,MOTT MACDONALD LIMITED,12/04/2012,564.41
Property & ICT,Building Schools for the Future (BSF),WGAP,Capital Expenditure,Payments to Contractor,KIER CONSTRUCTION LTD,26/04/2012,176631.33
Property & ICT,Capital and Facilities Management,CFAA,Premises-Related Expenditure,Grounds Maintenance - Other,TELFORD & WREKIN SERVICES LTD,30/04/2012,6933.69
Property & ICT,Capital and Facilities Management,CFAA,Premises-Related Expenditure,Grounds Maintenance - Other,TELFORD & WREKIN SERVICES LTD,30/04/2012,6933.69
Property & ICT,Capital and Facilities Management,CFAA,Premises-Related Expenditure,Grounds Maintenance - Other,NOBRIDGE LTD,30/04/2012,3218.23
Property & ICT,Capital and Facilities Management,CFAA,Premises-Related Expenditure,Grounds Maintenance - Other,NOBRIDGE LTD,30/04/2012,500
Property & ICT,Capital and Facilities Management,CFAA,Premises-Related Expenditure,Grounds Maintenance - Other,NOBRIDGE LTD,30/04/2012,800
Property & ICT,Capital and Facilities Management,CFAA,Premises-Related Expenditure,Grounds Maintenance - Other,TELFORD & WREKIN SERVICES LTD,03/04/2012,7194.15
Property & ICT,Capital and Facilities Management,CFAA,Premises-Related Expenditure,Grounds Maintenance - Other,TELFORD & WREKIN SERVICES LTD,03/04/2012,6933.69
Property & ICT,Capital and Facilities Management,CFAA,Premises-Related Expenditure,Grounds Maintenance - Other,TELFORD & WREKIN SERVICES LTD,03/04/2012,6933.69
Property & ICT,Capital and Facilities Management,CFAA,Premises-Related Expenditure,Grounds Maintenance - Other,TELFORD & WREKIN SERVICES LTD,30/04/2012,6933.69
Property & ICT,Capital and Facilities Management,CFAA,Premises-Related Expenditure,Grounds Maintenance - Other,TELFORD & WREKIN SERVICES LTD,30/04/2012,6933.69
Property & ICT,Capital and Facilities Management,CFAD,Supplies & Services,Security Services,BUSINESS WATCH GUARDING LIMITED,11/04/2012,17719.35
Property & ICT,Capital and Facilities Management,CFAE,Premises-Related Expenditure,Electricity,WEST MERCIA SUPPLIES Catalogue Supplies ,30/04/2012,1268.13
Property & ICT,Capital and Facilities Management,CFAE,Premises-Related Expenditure,Electricity,WEST MERCIA SUPPLIES Catalogue Supplies ,11/04/2012,1420.92
Property & ICT,Capital and Facilities Management,CFAE,Premises-Related Expenditure,Gas,WEST MERCIA SUPPLIES Catalogue Supplies ,30/04/2012,1241.39
Property & ICT,Capital and Facilities Management,CFAE,Premises-Related Expenditure,Gas,WEST MERCIA SUPPLIES Catalogue Supplies ,11/04/2012,1386.48
Property & ICT,Capital and Facilities Management,CFAV,Capital Financing Costs,Unitary Charge,PYRAMID SCHOOLS (HADLEY) LTD,26/04/2012,790964.85
Property & ICT,Capital and Facilities Management,CFAV,Capital Financing Costs,Construction EWoC � Facilities Management Charge,PYRAMID SCHOOLS (HADLEY) LTD,20/04/2012,839.49
Property & ICT,Capital and Facilities Management,CFAV,Capital Financing Costs,Construction EWoC � Facilities Management Charge,PYRAMID SCHOOLS (HADLEY) LTD,26/04/2012,1277.22
Property & ICT,Estates & Investments,CEAB,Premises-Related Expenditure,R&M -Buildings DLO Charge,MCPHILLIPS (WELLINGTON) LTD,16/04/2012,3078
Property & ICT,Estates & Investments,CEAB,Premises-Related Expenditure,Other,JOHN G RUSSELL (TRANSPORT) LTD,24/04/2012,2250
Property & ICT,Estates & Investments,CEAB,Premises-Related Expenditure,Other,JOHN G RUSSELL (TRANSPORT) LTD,24/04/2012,2250
Property & ICT,Estates & Investments,CEAB,Premises-Related Expenditure,Other,JOHN G RUSSELL (TRANSPORT) LTD,24/04/2012,2250
Property & ICT,Estates & Investments,CEAB,Premises-Related Expenditure,Other,JOHN G RUSSELL (TRANSPORT) LTD,24/04/2012,2250
Property & ICT,Estates & Investments,CEAB,Premises-Related Expenditure,Other,JOHN G RUSSELL (TRANSPORT) LTD,26/04/2012,2250
Property & ICT,Estates & Investments,CEAC,Premises-Related Expenditure,Electricity,WEST MERCIA SUPPLIES Catalogue Supplies ,17/04/2012,-878.9
Property & ICT,Estates & Investments,CEAC,Premises-Related Expenditure,Electricity,WEST MERCIA SUPPLIES Catalogue Supplies ,03/04/2012,-878.9
Property & ICT,Estates & Investments,CEAC,Premises-Related Expenditure,Electricity,WEST MERCIA SUPPLIES Catalogue Supplies ,03/04/2012,-801.96
Property & ICT,Estates & Investments,CEAC,Premises-Related Expenditure,Electricity,WEST MERCIA SUPPLIES Catalogue Supplies ,17/04/2012,-801.96
Property & ICT,Estates & Investments,CEAC,Premises-Related Expenditure,Clean Mats & Toilet Requisites,INITIAL WASHROOM SOLUTIONS,25/04/2012,1180.59
Property & ICT,Estates & Investments,CEAC,Supplies & Services,Security Services,BUSINESS WATCH GUARDING LIMITED,12/04/2012,1981.19
Property & ICT,Estates & Investments,CEAD,Employees,Professional Subs,BRADBURY COMMERCIAL LIMITED,12/04/2012,1600
Property & ICT,Estates & Investments,CEAD,Premises-Related Expenditure,Electricity,WEST MERCIA SUPPLIES Catalogue Supplies ,17/04/2012,-1505.25
Property & ICT,Estates & Investments,CEAD,Premises-Related Expenditure,Electricity,WEST MERCIA SUPPLIES Catalogue Supplies ,03/04/2012,-1505.25
Property & ICT,Estates & Investments,CEAD,Premises-Related Expenditure,Electricity,WEST MERCIA SUPPLIES Catalogue Supplies ,25/04/2012,1895.21
Property & ICT,Estates & Investments,CEAD,Premises-Related Expenditure,Electricity,WEST MERCIA SUPPLIES Catalogue Supplies ,03/04/2012,-1350.03
Property & ICT,Estates & Investments,CEAD,Premises-Related Expenditure,Electricity,WEST MERCIA SUPPLIES Catalogue Supplies ,17/04/2012,-1350.03
Property & ICT,Estates & Investments,CEAE,Premises-Related Expenditure,Electricity,WEST MERCIA SUPPLIES Catalogue Supplies ,24/04/2012,568.01
Property & ICT,Estates & Investments,CEAE,Premises-Related Expenditure,Electricity,WEST MERCIA SUPPLIES Catalogue Supplies ,24/04/2012,1135.28
Property & ICT,Estates & Investments,CEAE,Premises-Related Expenditure,Electricity,WEST MERCIA SUPPLIES Catalogue Supplies ,24/04/2012,601.44
Property & ICT,Estates & Investments,CEAE,Premises-Related Expenditure,Electricity,WEST MERCIA SUPPLIES Catalogue Supplies ,24/04/2012,522.88
Property & ICT,Estates & Investments,CEAE,Premises-Related Expenditure,Electricity,WEST MERCIA SUPPLIES Catalogue Supplies ,12/04/2012,557.05
Property & ICT,Estates & Investments,CEAE,Premises-Related Expenditure,Electricity,WEST MERCIA SUPPLIES Catalogue Supplies ,12/04/2012,511.29
Property & ICT,Estates & Investments,CEAE,Premises-Related Expenditure,Gas,WEST MERCIA SUPPLIES Catalogue Supplies ,25/04/2012,4087.02
Property & ICT,Estates & Investments,CEAE,Premises-Related Expenditure,Gas,WEST MERCIA SUPPLIES Catalogue Supplies ,25/04/2012,2288.85
Property & ICT,Estates & Investments,CEAE,Supplies & Services,Security Services,BUSINESS WATCH GUARDING LIMITED,24/04/2012,789.75
Property & ICT,Estates & Investments,CEAE,Supplies & Services,Telephones,MIDLAND TML,25/04/2012,670.82
Property & ICT,Estates & Investments,CEAE,Supplies & Services,Telephones,MIDLAND TELECOM,25/04/2012,2169
Property & ICT,Estates & Investments,CEAH,Premises-Related Expenditure,Dilapidations,PRYCE (BUILDERS) LTD,23/04/2012,27981.8
Property & ICT,Estates & Investments,CEAH,Premises-Related Expenditure,R&M -Buildings DLO Charge,WINDOW & DOOR CONTRACT SERVICES,24/04/2012,572.86
Property & ICT,Estates & Investments,CEAH,Premises-Related Expenditure,R&M -Building Other,JONES & HAMPTON LTD,24/04/2012,689.24
Property & ICT,Estates & Investments,CEAH,Premises-Related Expenditure,R&M -Building Other,PRYCE (BUILDERS) LTD,17/04/2012,4050
Property & ICT,Estates & Investments,CEAH,Premises-Related Expenditure,Electricity,BRITISH GAS BUSINESS (ELECTRICITY),24/04/2012,634.37
Property & ICT,Estates & Investments,CEAH,Premises-Related Expenditure,Electricity,BRITISH GAS BUSINESS,26/04/2012,2233.33
Property & ICT,Estates & Investments,CEAH,Supplies & Services,Payment Of Income Collected,COMBINED PROPERTY CONTROL,10/04/2012,2437.72
Property & ICT,Estates & Investments,CEAJ,Third Party Payments,Voluntary Bodies,SEVERN GORGE COUNTRYSIDE TRUST,11/04/2012,52175.74
Property & ICT,Estates & Investments,CEAL,Employees,Agency Supply Costs,JUDD FARRIS LIMITED,11/04/2012,1125
Property & ICT,Estates & Investments,CEAL,Employees,Agency Supply Costs,JUDD FARRIS LIMITED,04/04/2012,562.5
Property & ICT,Estates & Investments,CEAN,Premises-Related Expenditure,R&M -Buildings DLO Charge,GRANVILLE CONSTRUCTION & MAINTENANCE LTD,24/04/2012,657.1
Property & ICT,Estates & Investments,CEAN,Premises-Related Expenditure,R&M -Buildings DLO Charge,PAVE AWAYS LTD,24/04/2012,523
Property & ICT,Estates & Investments,CEAN,Premises-Related Expenditure,Electricity,WEST MERCIA SUPPLIES Catalogue Supplies ,24/04/2012,687.05
Property & ICT,Estates & Investments,CEAN,Premises-Related Expenditure,Electricity,WEST MERCIA SUPPLIES Catalogue Supplies ,24/04/2012,837.48
Property & ICT,Estates & Investments,CEAN,Premises-Related Expenditure,Electricity,WEST MERCIA SUPPLIES Catalogue Supplies ,24/04/2012,1837.32
Property & ICT,Estates & Investments,CEAN,Premises-Related Expenditure,Electricity,WEST MERCIA SUPPLIES Catalogue Supplies ,25/04/2012,552.97
Property & ICT,Estates & Investments,CEAN,Premises-Related Expenditure,Electricity,WEST MERCIA SUPPLIES Catalogue Supplies ,26/04/2012,1141.94
Property & ICT,Estates & Investments,CEAN,Premises-Related Expenditure,Electricity,SWALEC,12/04/2012,897.85
Property & ICT,Estates & Investments,CEAN,Premises-Related Expenditure,Electricity,WEST MERCIA SUPPLIES Catalogue Supplies ,25/04/2012,1840.48
Property & ICT,Estates & Investments,CEAN,Premises-Related Expenditure,Gas,WEST MERCIA SUPPLIES Catalogue Supplies ,25/04/2012,-567.55
Property & ICT,Estates & Investments,CEAN,Premises-Related Expenditure,Gas,WEST MERCIA SUPPLIES Catalogue Supplies ,12/04/2012,1325.35
Property & ICT,Estates & Investments,CEAN,Premises-Related Expenditure,Gas,WEST MERCIA SUPPLIES Catalogue Supplies ,12/04/2012,567.55
Property & ICT,Estates & Investments,CEAN,Premises-Related Expenditure,Gas,WEST MERCIA SUPPLIES Catalogue Supplies ,25/04/2012,877.71
Property & ICT,Estates & Investments,CEAN,Premises-Related Expenditure,Contract Cleaning,PHS GROUP LTD,12/04/2012,885.56
Property & ICT,Estates & Investments,CEAN,Premises-Related Expenditure,Building Cleaning DSO,OCS GROUP UK LIMITED T/A CANNON,24/04/2012,1396.1
Property & ICT,Estates & Investments,CEAN,Premises-Related Expenditure,Building Cleaning DSO,PHS GROUP LTD,12/04/2012,1310.92
Property & ICT,Estates & Investments,CEAN,Premises-Related Expenditure,Grounds Maintenance - L&CS,TELFORD & WREKIN SERVICES LTD,16/04/2012,568.36
Property & ICT,Estates & Investments,CEAN,Premises-Related Expenditure,Grounds Maintenance - L&CS,JONES & HAMPTON LTD,17/04/2012,513.25
Property & ICT,Estates & Investments,CEAN,Supplies & Services,Security Services,RMP SPECIALIST SERVICES LIMITED,16/04/2012,2008.6
Property & ICT,Facilities (Catering & Cleaning),CAMA,Employees,Training Expenses,CIEH,13/04/2012,637.8
Property & ICT,Facilities (Catering & Cleaning),CAMA,Premises-Related Expenditure,Clean Mats & Toilet Requisites,WEST MERCIA SUPPLIES Catalogue Supplies (None Utility),19/04/2012,3011.95
Property & ICT,Facilities (Catering & Cleaning),CASM,Supplies & Services,EEC Whole Milk,JOHAL DAIRIES,12/04/2012,2900.42
Property & ICT,Facilities (Catering & Cleaning),CASM,Supplies & Services,EEC Whole Milk,JOHAL DAIRIES,12/04/2012,787.77
Property & ICT,Facilities (Catering & Cleaning),CASM,Supplies & Services,EEC Whole Milk,JOHAL DAIRIES,12/04/2012,782.49
Property & ICT,Facilities (Catering & Cleaning),CASM,Supplies & Services,EEC Whole Milk,JOHAL DAIRIES,12/04/2012,776.7
Property & ICT,Facilities (Catering & Cleaning),CASM,Supplies & Services,EEC Whole Milk,JOHAL DAIRIES,12/04/2012,2941.74
Property & ICT,Facilities (Catering & Cleaning),CASM,Supplies & Services,EEC Whole Milk,JOHAL DAIRIES,12/04/2012,2941.9
Property & ICT,Facilities (Catering & Cleaning),CASM,Supplies & Services,EEC Whole Milk,JOHAL DAIRIES,26/04/2012,788.05
Property & ICT,Facilities (Catering & Cleaning),CASM,Supplies & Services,EEC Whole Milk,JOHAL DAIRIES,26/04/2012,788.05
Property & ICT,Facilities (Catering & Cleaning),CASM,Supplies & Services,EEC Whole Milk,JOHAL DAIRIES,26/04/2012,788.05
Property & ICT,Facilities (Catering & Cleaning),CASM,Supplies & Services,EEC Whole Milk,JOHAL DAIRIES,26/04/2012,2940.02
Property & ICT,Facilities (Catering & Cleaning),CASM,Supplies & Services,EEC Whole Milk,JOHAL DAIRIES,26/04/2012,2940.02
Property & ICT,Facilities (Catering & Cleaning),CASM,Supplies & Services,EEC Whole Milk,JOHAL DAIRIES,26/04/2012,2938.97
Property & ICT,Facilities (Catering & Cleaning),CASP,Supplies & Services,Provisions,BIKOLD,26/04/2012,-1613
Property & ICT,Facilities (Catering & Cleaning),CASP,Supplies & Services,Provisions,FRESHVIEW FOODS LTD,26/04/2012,-3456.29
Property & ICT,Facilities (Catering & Cleaning),CASP,Supplies & Services,Provisions,WELSH BROS FOODS LTD,26/04/2012,1242.25
Property & ICT,Facilities (Catering & Cleaning),CASP,Supplies & Services,Provisions,BIKOLD,26/04/2012,1613
Property & ICT,Facilities (Catering & Cleaning),CASS,Supplies & Services,Provisions,BIKOLD,26/04/2012,503.9
Property & ICT,Facilities (Catering & Cleaning),CASS,Supplies & Services,Provisions,SMART FOOD,04/04/2012,570.37
Property & ICT,ICT - Infrastructure & Operations,CBAF,Supplies & Services,Comp Hardware (Purch / Hire),DELL COMPUTER CORPORATION LTD,12/04/2012,73927.38
Property & ICT,ICT - Infrastructure & Operations,CBAF,Supplies & Services,Comp Hardware (Purch / Hire),SPECIALIST COMPUTERS CENTRES PLC,13/04/2012,3111
Property & ICT,ICT - Infrastructure & Operations,CBAF,Supplies & Services,Comp Hardware (Purch / Hire),SPECIALIST COMPUTERS CENTRES PLC,12/04/2012,4117.5
Property & ICT,ICT - Infrastructure & Operations,CBAF,Supplies & Services,Comp Hardware (Purch / Hire),SPECIALIST COMPUTERS CENTRES PLC,17/04/2012,4117.5
Property & ICT,ICT - Infrastructure & Operations,CBAF,Supplies & Services,Comp Software (Purch / Hire),PHOENIX SOFTWARE LTD,11/04/2012,1812.33
Property & ICT,ICT - Infrastructure & Operations,CBAF,Supplies & Services,Comp Software (Purch / Hire),ABACUS SOFTWARE LTD,17/04/2012,840
Property & ICT,ICT - Infrastructure & Operations,CBAF,Supplies & Services,Computer Software (Maint),SPECIALIST COMPUTERS CENTRES PLC,10/04/2012,13810
Property & ICT,ICT - Infrastructure & Operations,CBAF,Supplies & Services,Computer Software (Maint),SPECIALIST COMPUTERS CENTRES PLC,10/04/2012,13810
Property & ICT,ICT - Infrastructure & Operations,CBAF,Supplies & Services,Computer Software (Maint),SPECIALIST COMPUTERS CENTRES PLC,10/04/2012,13810
Property & ICT,ICT - Infrastructure & Operations,CBAF,Supplies & Services,Computer Software (Maint),SPECIALIST COMPUTERS CENTRES PLC,04/04/2012,716
Property & ICT,ICT - Infrastructure & Operations,CBAF,Supplies & Services,Computer Software (Maint),SPECIALIST COMPUTERS CENTRES PLC,04/04/2012,1790
Property & ICT,ICT - Infrastructure & Operations,CBAF,Supplies & Services,Computer Software (Maint),SPECIALIST COMPUTERS CENTRES PLC,04/04/2012,6640
Property & ICT,ICT - Infrastructure & Operations,CBAF,Supplies & Services,Computer Software (Maint),SPECIALIST COMPUTERS CENTRES PLC,04/04/2012,560
Property & ICT,ICT - Infrastructure & Operations,CBAF,Supplies & Services,Computer Software (Maint),SPECIALIST COMPUTERS CENTRES PLC,04/04/2012,700
Property & ICT,ICT - Infrastructure & Operations,CBAF,Supplies & Services,Computer Software (Maint),SPECIALIST COMPUTERS CENTRES PLC,04/04/2012,1328
Property & ICT,ICT - Infrastructure & Operations,CBAF,Supplies & Services,Computer Software (Maint),SPECIALIST COMPUTERS CENTRES PLC,04/04/2012,1190
Property & ICT,ICT - Infrastructure & Operations,CBAF,Supplies & Services,Computer Software (Maint),SPECIALIST COMPUTERS CENTRES PLC,04/04/2012,1120
Property & ICT,ICT - Infrastructure & Operations,CBAF,Supplies & Services,Computer Software (Maint),SPECIALIST COMPUTERS CENTRES PLC,04/04/2012,1432
Property & ICT,ICT - Infrastructure & Operations,CBAF,Supplies & Services,Computer Software (Maint),SPECIALIST COMPUTERS CENTRES PLC,04/04/2012,3320
Property & ICT,ICT - Infrastructure & Operations,CBAF,Supplies & Services,Computer Software (Maint),SPECIALIST COMPUTERS CENTRES PLC,04/04/2012,1750
Property & ICT,ICT - Infrastructure & Operations,CBAG,Supplies & Services,Telephones,VIRGIN MEDIA BUSINESS,04/04/2012,7120.38
Property & ICT,ICT - Infrastructure & Operations,CBAG,Supplies & Services,Mobile Phones,ORANGE PERSONAL COMM SERVICES LTD,04/04/2012,4873.27
Property & ICT,ICT - Infrastructure & Operations,CBAG,Supplies & Services,Mobile Phones,ORANGE PERSONAL COMM SERVICES LTD,04/04/2012,7334.19
Property & ICT,ICT - Infrastructure & Operations,CBAG,Supplies & Services,Mobile Phones,ORANGE PERSONAL COMM SERVICES LTD,04/04/2012,1559.8
Property & ICT,ICT - Infrastructure & Operations,CBAG,Supplies & Services,Mobile Phones,ORANGE PERSONAL COMM SERVICES LTD,04/04/2012,1014.88
Property & ICT,ICT - Infrastructure & Operations,CBAG,Supplies & Services,Mobile Phones,ORANGE PERSONAL COMM SERVICES LTD,04/04/2012,14407.7
Property & ICT,ICT - Infrastructure & Operations,CBAG,Supplies & Services,Other Expenses,PROCESS FLOWS UK LTD,12/04/2012,554.28
Property & ICT,ICT - Infrastructure & Operations,CBAH,Supplies & Services,Comp Software (Purch / Hire),OPEN SYSTEMS MANAGEMENT LTD,16/04/2012,1776
Property & ICT,ICT - Infrastructure & Operations,CBAJ,Premises-Related Expenditure,R&M -Building Other,ADT FIRE & SECURITY PLC,13/04/2012,796.2
Property & ICT,ICT - Infrastructure & Operations,CBAJ,Premises-Related Expenditure,R&M -Building Other,PERT AIR CONDITIONING LIMITED,03/04/2012,760
Property & ICT,ICT - Infrastructure & Operations,CBAJ,Supplies & Services,Comp Hardware (Purch / Hire),SPECIALIST COMPUTERS CENTRES PLC,26/04/2012,1438.78
Property & ICT,ICT - Infrastructure & Operations,CBAJ,Supplies & Services,Comp Hardware (Purch / Hire),SPECIALIST COMPUTERS CENTRES PLC,12/04/2012,725.24
Property & ICT,ICT - Infrastructure & Operations,CBAJ,Supplies & Services,Comp Hardware (Purch / Hire),SPECIALIST COMPUTERS CENTRES PLC,04/04/2012,8506.4
Property & ICT,ICT - Infrastructure & Operations,CBAJ,Supplies & Services,Comp Hardware (Purch / Hire),SPECIALIST COMPUTERS CENTRES PLC,03/04/2012,-954.26
Property & ICT,ICT - Infrastructure & Operations,CBAJ,Supplies & Services,Comp Hardware (Purch / Hire),SPECIALIST COMPUTERS CENTRES PLC,12/04/2012,616.62
Property & ICT,ICT - Infrastructure & Operations,CBAJ,Supplies & Services,Comp Hardware (Purch / Hire),SPECIALIST COMPUTERS CENTRES PLC,12/04/2012,2610.48
Property & ICT,ICT - Infrastructure & Operations,CBAJ,Supplies & Services,Comp Hardware (Purch / Hire),SPECIALIST COMPUTERS CENTRES PLC,12/04/2012,2900.96
Property & ICT,ICT - Infrastructure & Operations,CBAJ,Supplies & Services,Comp Hardware (Purch / Hire),SPECIALIST COMPUTERS CENTRES PLC,23/04/2012,1418.2
Property & ICT,ICT - Infrastructure & Operations,CBAJ,Supplies & Services,Computer Hardware (Maint),Recycle IT 4 U Ltd,20/04/2012,2800
Property & ICT,ICT - Infrastructure & Operations,CBAJ,Supplies & Services,Comp Software (Purch / Hire),CIVICA UK LIMITED,04/04/2012,19725
Property & ICT,ICT - Infrastructure & Operations,CBAJ,Supplies & Services,Comp Software (Purch / Hire),CIVICA UK LIMITED,04/04/2012,18651.77
Property & ICT,ICT - Infrastructure & Operations,CBAJ,Supplies & Services,Comp Software (Purch / Hire),NORTHGATEARINSO UK LTD,26/04/2012,63537.61
Property & ICT,ICT - Infrastructure & Operations,CBAJ,Supplies & Services,Comp Software (Purch / Hire),NORTHGATE INFORMATION SOLUTIONS UK LTD,26/04/2012,69100
Property & ICT,ICT - Infrastructure & Operations,CBAJ,Supplies & Services,Comp Software (Purch / Hire),NORTHGATE INFORMATION SOLUTIONS UK LTD,26/04/2012,-49833.71
Property & ICT,ICT - Infrastructure & Operations,CBAJ,Supplies & Services,Comp Software (Purch / Hire),NORTHGATE INFORMATION SOLUTIONS UK LTD,26/04/2012,82906.5
Property & ICT,ICT - Infrastructure & Operations,CBAJ,Supplies & Services,Comp Software (Purch / Hire),CIVICA SERVICES LTD,18/04/2012,25650
Property & ICT,ICT - Infrastructure & Operations,CBAJ,Supplies & Services,Comp Software (Purch / Hire),NTS (UK) LTD,03/04/2012,-1480
Property & ICT,ICT - Infrastructure & Operations,CBAJ,Supplies & Services,Comp Software (Purch / Hire),CIVICA UK LIMITED,04/04/2012,7100
Property & ICT,ICT - Infrastructure & Operations,CBAJ,Supplies & Services,Comp Software (Purch / Hire),CIVICA UK LIMITED,04/04/2012,-1500
Property & ICT,ICT - Infrastructure & Operations,CBAJ,Supplies & Services,Computer Software (Maint),IDOX SOFTWARE LTD,26/04/2012,127177.92
Property & ICT,ICT - Infrastructure & Operations,CBAJ,Supplies & Services,External Computer Use,JORAPH MANAGED SERVICES LTD,18/04/2012,3000
Property & ICT,ICT - Infrastructure & Operations,CBAJ,Supplies & Services,Telecomms,JANET (UK),18/04/2012,12322.33
Property & ICT,ICT - Infrastructure & Operations,CBAJ,Supplies & Services,Telecomms,JANET (UK),18/04/2012,12322.32
Property & ICT,ICT - Infrastructure & Operations,CBAK,Supplies & Services,Printing - Print Room,XEROX (UK) LTD,27/04/2012,13746.9
Property & ICT,ICT - Infrastructure & Operations,CBAK,Supplies & Services,Printing - Other,TAWS PRINTERS LTD,20/04/2012,528
Property & ICT,ICT - Infrastructure & Operations,CBAK,Supplies & Services,Printing - Other,MARKETING AT THE MILL,12/04/2012,650
Property & ICT,ICT - Infrastructure & Operations,CBAK,Supplies & Services,Stationery,WEST MERCIA SUPPLIES Catalogue Supplies (None Utility),05/04/2012,517
Property & ICT,ICT - Infrastructure & Operations,CBAK,Supplies & Services,Stationery,WEST MERCIA SUPPLIES Catalogue Supplies (None Utility),26/04/2012,517
Property & ICT,ICT - Infrastructure & Operations,COAB,Supplies & Services,Postages,ROYAL MAIL GROUP LTD,20/04/2012,566.66
Property & ICT,ICT - Infrastructure & Operations,COAB,Supplies & Services,Postages,FRANCOTYP-POSTALIA LIMITED,04/04/2012,10000
Property & ICT,ICT - Infrastructure & Operations,COAB,Supplies & Services,Postages,FRANCOTYP-POSTALIA LIMITED,26/04/2012,3201.2
Property & ICT,ICT - Infrastructure & Operations,COAC,Supplies & Services,Postages,FP EXECUTIVE AGENCY LTD,04/04/2012,656
Property & ICT,ICT - Infrastructure & Operations,COAC,Supplies & Services,Postages,TNT POST MIDLANDS,13/04/2012,782.02
Property & ICT,ICT - Infrastructure & Operations,COAC,Supplies & Services,Postages,TNT POST MIDLANDS,04/04/2012,1062.73
Property & ICT,ICT - Infrastructure & Operations,COAC,Supplies & Services,Postages,TNT POST MIDLANDS,04/04/2012,1144.33
Property & ICT,ICT - Infrastructure & Operations,WCAG,Capital Expenditure,Payments to Contractor,CIVICA UK LIMITED,04/04/2012,-500
Property & ICT,ICT - Infrastructure & Operations,WCAG,Capital Expenditure,Payments to Contractor,SPECIALIST COMPUTERS CENTRES PLC,12/04/2012,1432
Property & ICT,ICT - Infrastructure & Operations,WCAG,Capital Expenditure,Payments to Contractor,SPECIALIST COMPUTERS CENTRES PLC,12/04/2012,2656
Property & ICT,ICT - Infrastructure & Operations,WCAG,Capital Expenditure,Payments to Contractor,SPECIALIST COMPUTERS CENTRES PLC,12/04/2012,700
Property & ICT,ICT - Infrastructure & Operations,WCAG,Capital Expenditure,Payments to Contractor,SPECIALIST COMPUTERS CENTRES PLC,12/04/2012,980
Property & ICT,ICT - Infrastructure & Operations,WCAG,Capital Expenditure,Payments to Contractor,SPECIALIST COMPUTERS CENTRES PLC,12/04/2012,716
Property & ICT,ICT - Infrastructure & Operations,WCAG,Capital Expenditure,Payments to Contractor,SPECIALIST COMPUTERS CENTRES PLC,12/04/2012,2656
Property & ICT,ICT - Infrastructure & Operations,WCAG,Capital Expenditure,Payments to Contractor,SPECIALIST COMPUTERS CENTRES PLC,12/04/2012,560
Property & ICT,ICT - Infrastructure & Operations,WCAG,Capital Expenditure,Payments to Contractor,SPECIALIST COMPUTERS CENTRES PLC,12/04/2012,980
Property & ICT,ICT - Infrastructure & Operations,WCAG,Capital Expenditure,Payments to Contractor,NORTHGATE INFORMATION SOLUTIONS UK LTD,13/04/2012,850
Property & ICT,ICT - Infrastructure & Operations,WCAG,Capital Expenditure,Payments to Contractor,CIVICA UK LIMITED,04/04/2012,2366.67
Property & ICT,Operational Property,CAAH,Premises-Related Expenditure,R&M -Buildings DLO Charge,WATERCLEAN SERVICES LTD,04/04/2012,600
Property & ICT,Operational Property,CAAH,Premises-Related Expenditure,R&M -Buildings DLO Charge,WATERCLEAN SERVICES LTD,04/04/2012,600
Property & ICT,Operational Property,CAAH,Premises-Related Expenditure,R&M -Buildings DLO Charge,RCS ROOFING CONSTRUCTION SERVICES LTD,17/04/2012,1056.61
Property & ICT,Operational Property,CAAH,Premises-Related Expenditure,R&M -Buildings DLO Charge,D P WILCOX & SON,17/04/2012,775.1
Property & ICT,Operational Property,CAAH,Premises-Related Expenditure,R&M -Buildings DLO Charge,D P WILCOX & SON,17/04/2012,550
Property & ICT,Operational Property,CAAH,Premises-Related Expenditure,R&M -Buildings DLO Charge,PP ELECTRICAL SERVICES,17/04/2012,841.15
Property & ICT,Operational Property,CAAH,Premises-Related Expenditure,R&M -Buildings DLO Charge,D P WILCOX & SON,17/04/2012,627.5
Property & ICT,Operational Property,CAAH,Premises-Related Expenditure,R&M -Buildings DLO Charge,CKB Contracting,17/04/2012,600
Property & ICT,Operational Property,CAAH,Premises-Related Expenditure,R&M -Buildings DLO Charge,SHROPSHIRE HEATING SERVICES LTD,26/04/2012,1188
Property & ICT,Operational Property,CAAH,Premises-Related Expenditure,R&M -Buildings DLO Charge,BRITISH GAS SERVICES (COMMERCIAL) LTD,26/04/2012,948.5
Property & ICT,Operational Property,CAAH,Premises-Related Expenditure,R&M -Buildings DLO Charge,REDACTED PERSONAL INFORMATION,17/04/2012,515.72
Property & ICT,Operational Property,CAAH,Premises-Related Expenditure,R&M -Buildings DLO Charge,SHROPSHIRE HEATING SERVICES LTD,17/04/2012,634.17
Property & ICT,Operational Property,CAAH,Premises-Related Expenditure,R&M -Buildings DLO Charge,PUMP SERVICES,17/04/2012,500
Property & ICT,Operational Property,CAAH,Premises-Related Expenditure,R&M -Buildings DLO Charge,DUDLEY'S GLASS (TELFORD) LTD,17/04/2012,1054.17
Property & ICT,Operational Property,CAAH,Premises-Related Expenditure,R&M -Buildings DLO Charge,PP ELECTRICAL SERVICES,17/04/2012,2415.14
Property & ICT,Operational Property,CAAH,Premises-Related Expenditure,R&M -Buildings DLO Charge,SHROPSHIRE HEATING SERVICES LTD,17/04/2012,709
Property & ICT,Operational Property,CAAH,Premises-Related Expenditure,R&M -Buildings DLO Charge,D P WILCOX & SON,26/04/2012,605.4
Property & ICT,Operational Property,CAAH,Premises-Related Expenditure,R&M -Buildings DLO Charge,D P WILCOX & SON,04/04/2012,675
Property & ICT,Operational Property,CAAH,Premises-Related Expenditure,R&M -Buildings DLO Charge,WATERCLEAN SERVICES LTD,03/04/2012,-600
Property & ICT,Operational Property,CFAY,Supplies & Services,Protective Clothing,MAIN MAN SUPPLIES LTD,23/04/2012,1562.75
Property & ICT,Operational Property,CFAY,Supplies & Services,Protective Clothing,MAIN MAN SUPPLIES LTD,10/04/2012,772.5
Property & ICT,Operational Property,CFAY,Supplies & Services,Protective Clothing,MAIN MAN SUPPLIES LTD,10/04/2012,974.6
Property & ICT,Operational Property,COAE,Premises-Related Expenditure,R&M -Buildings DLO Charge,TELFORD & WREKIN SERVICES LTD,10/04/2012,2690.98
Property & ICT,Operational Property,COAE,Premises-Related Expenditure,R&M -Buildings DLO Charge,ADT FIRE & SECURITY PLC,13/04/2012,2173.37
Property & ICT,Operational Property,COAE,Premises-Related Expenditure,R&M -Buildings DLO Charge,PHS GROUP LTD,13/04/2012,2979
Property & ICT,Operational Property,COAE,Premises-Related Expenditure,R&M -Buildings DLO Charge,ADT FIRE & SECURITY PLC,13/04/2012,676.14
Property & ICT,Operational Property,COAE,Premises-Related Expenditure,R&M -Buildings DLO Charge,ADT FIRE & SECURITY PLC,13/04/2012,609.16
Property & ICT,Operational Property,COAE,Premises-Related Expenditure,R&M -Buildings DLO Charge,Waste Recycling Limited,12/04/2012,1170.25
Property & ICT,Operational Property,COAE,Premises-Related Expenditure,R&M -Buildings DLO Charge,Waste Recycling Limited,12/04/2012,1750.75
Property & ICT,Operational Property,COAE,Premises-Related Expenditure,R&M -Buildings DLO Charge,TELFORD & WREKIN SERVICES LTD,17/04/2012,2690.98
Property & ICT,Operational Property,COAE,Premises-Related Expenditure,R&M -Buildings DLO Charge,PHS GROUP LTD,19/04/2012,-628.42
Property & ICT,Operational Property,COAE,Premises-Related Expenditure,Electricity,WEST MERCIA SUPPLIES Catalogue Supplies ,04/04/2012,11524.72
Property & ICT,Operational Property,COAE,Premises-Related Expenditure,Electricity,WEST MERCIA SUPPLIES Catalogue Supplies ,10/04/2012,-1283.78
Property & ICT,Operational Property,COAE,Premises-Related Expenditure,Electricity,WEST MERCIA SUPPLIES Catalogue Supplies ,10/04/2012,1236.65
Property & ICT,Operational Property,COAE,Premises-Related Expenditure,Electricity,WEST MERCIA SUPPLIES Catalogue Supplies ,10/04/2012,1265.95
Property & ICT,Operational Property,COAE,Premises-Related Expenditure,Electricity,WEST MERCIA SUPPLIES Catalogue Supplies ,19/04/2012,651.99
Property & ICT,Operational Property,COAE,Premises-Related Expenditure,Electricity,WEST MERCIA SUPPLIES Catalogue Supplies ,19/04/2012,776.86
Property & ICT,Operational Property,COAE,Premises-Related Expenditure,Electricity,WEST MERCIA SUPPLIES Catalogue Supplies ,19/04/2012,1252.74
Property & ICT,Operational Property,COAE,Premises-Related Expenditure,Electricity,WEST MERCIA SUPPLIES Catalogue Supplies ,19/04/2012,876.38
Property & ICT,Operational Property,COAE,Premises-Related Expenditure,Gas,WEST MERCIA SUPPLIES Catalogue Supplies ,20/04/2012,3680.72
Property & ICT,Operational Property,COAE,Premises-Related Expenditure,Gas,WEST MERCIA SUPPLIES Catalogue Supplies ,23/04/2012,2774.88
Property & ICT,Operational Property,COAE,Premises-Related Expenditure,Clean Mats & Toilet Requisites,WEST MERCIA SUPPLIES Catalogue Supplies (None Utility),03/04/2012,-1194.59
Property & ICT,Operational Property,COAG,Premises-Related Expenditure,R&M WC Planned,HEATRITE SERVICES,18/04/2012,929
Property & ICT,Operational Property,COAG,Premises-Related Expenditure,R&M WC Planned,SHROPSHIRE HEATING SERVICES LTD,27/04/2012,732.76
Property & ICT,Operational Property,COAG,Premises-Related Expenditure,R&M WC Planned,SHROPSHIRE HEATING SERVICES LTD,16/04/2012,1769.55
Property & ICT,Operational Property,COAG,Premises-Related Expenditure,R&M Buy Back Premium,PUMP SERVICES,16/04/2012,4300
Property & ICT,Operational Property,COAH,Premises-Related Expenditure,Electricity,BRITISH GAS BUSINESS,13/04/2012,1117.96
Property & ICT,Operational Property,WCAY,Capital Expenditure,Payments to Contractor,KRM CONTRACTORS LTD,03/04/2012,2997.89
Property & ICT,Operational Property,WCAY,Capital Expenditure,Payments to Contractor,THE MOBILE BASE COMPANY (SHROPSHIRE) LTD,17/04/2012,10696.8
Property & ICT,Operational Property,WCAY,Capital Expenditure,Payments to Contractor,KRM CONTRACTORS LTD,17/04/2012,22057.89
Property & ICT,Operational Property,WCAY,Capital Expenditure,Payments to Contractor,SHROPSHIRE COUNCIL,20/04/2012,1750
Property & ICT,Operational Property,WCAY,Capital Expenditure,Payments to Contractor,GRANVILLE CONSTRUCTION & MAINTENANCE LTD,20/04/2012,1139
Property & ICT,Operational Property,WCAY,Capital Expenditure,Payments to Contractor,GRANVILLE CONSTRUCTION & MAINTENANCE LTD,20/04/2012,2774.96
Property & ICT,Operational Property,WCAY,Capital Expenditure,Payments to Contractor,GRANVILLE CONSTRUCTION & MAINTENANCE LTD,20/04/2012,587.1
Property & ICT,Operational Property,WCAY,Capital Expenditure,Payments to Contractor,FINNIGAN & HARPER LIMITED,20/04/2012,7081
Property & ICT,Operational Property,WCAY,Capital Expenditure,Payments to Contractor,DATASAVE LIMITED,20/04/2012,931.29
Property & ICT,Operational Property,WCAY,Capital Expenditure,Payments to Contractor,GRANVILLE CONSTRUCTION & MAINTENANCE LTD,20/04/2012,760.62
Property & ICT,Operational Property,WCAY,Capital Expenditure,Site Purchase,HMRC SHIPLEY,20/04/2012,72000
Property & ICT,Operational Property,WCBA,Capital Expenditure,Payments to Contractor,SHROPSHIRE HEATING SERVICES LTD,27/04/2012,590.85
Property & ICT,Operational Property,WCBA,Capital Expenditure,Payments to Contractor,GRANVILLE CONSTRUCTION & MAINTENANCE LTD,16/04/2012,726.52
Property & ICT,Operational Property,WCOA,Capital Expenditure,Payments to Contractor,SIGNS EXPRESS (TELFORD),04/04/2012,735
Property & ICT,Operational Property,WCOA,Capital Expenditure,Payments to Contractor,SIGNS EXPRESS (TELFORD),04/04/2012,935
Property & ICT,Operational Property,WCOA,Capital Expenditure,Payments to Contractor,GLYN UPTON REMOVALS,17/04/2012,686
Property & ICT,Operational Property,WCOA,Capital Expenditure,Payments to Contractor,MOTT MACDONALD LIMITED,17/04/2012,2000
Property & ICT,Operational Property,WCOA,Capital Expenditure,Payments to Contractor,SIGNS EXPRESS (TELFORD),04/04/2012,1937
Property & ICT,Operational Property,WCOA,Capital Expenditure,Payments to Contractor,CATERING CENTRE UK LTD,04/04/2012,1511.91
Property & ICT,Operational Property,WCOA,Capital Expenditure,Payments to Contractor,QUANTICK SAFETY SYSTEMS LTD,04/04/2012,3060
Property & ICT,Operational Property,WCOA,Capital Expenditure,Payments to Contractor,LANEHOUSE DEVELOPEMENTS LTD T/A ARDEN PRODUCTS,04/04/2012,2155
Property & ICT,Operational Property,WCOA,Capital Expenditure,Payments to Contractor,AQUILA BUSINESS PRODUCTS LTD,04/04/2012,1159.42
Property & ICT,Operational Property,WCOA,Capital Expenditure,Payments to Contractor,CHUBB FIRE LIMITED,04/04/2012,581.01
Property & ICT,Operational Property,WCOA,Capital Expenditure,Payments to Contractor,CHUBB FIRE LIMITED,04/04/2012,3279.17
Property & ICT,Operational Property,WCOA,Capital Expenditure,Payments to Contractor,SIGNS EXPRESS (TELFORD),04/04/2012,570
Property & ICT,Operational Property,WCOA,Capital Expenditure,Payments to Contractor,SIGNS EXPRESS (TELFORD),04/04/2012,7697
Property & ICT,Operational Property,WCOA,Capital Expenditure,Payments to Contractor,EMERGENT CROWN,04/04/2012,2707.15
Property & ICT,Operational Property,WCOA,Capital Expenditure,Payments to Contractor,TRIUMPH FURNITURE LTD,04/04/2012,854.52
Property & ICT,Operational Property,WCOA,Capital Expenditure,Payments to Contractor,LANEHOUSE DEVELOPEMENTS LTD T/A ARDEN PRODUCTS,27/04/2012,4083.5
Property & ICT,Operational Property,WFAM,Capital Expenditure,Payments to Contractor,JONES & HAMPTON LTD,26/04/2012,2402.4
Property & ICT,Operational Property,WFAM,Capital Expenditure,Payments to Contractor,PRYCE (BUILDERS) LTD,27/04/2012,4664.88
Property & ICT,Operational Property,WGCF,Capital Expenditure,Payments to Contractor,PP ELECTRICAL SERVICES,30/04/2012,871.9
Property & ICT,Operational Property,WGCF,Capital Expenditure,Payments to Contractor,JONES & HAMPTON LTD,26/04/2012,3303.58
Property & ICT,Operational Property,WGCF,Capital Expenditure,Payments to Contractor,PRYCE (BUILDERS) LTD,16/04/2012,20722
Property & ICT,Operational Property,WGCF,Capital Expenditure,Payments to Contractor,GRANVILLE CONSTRUCTION & MAINTENANCE LTD,27/04/2012,1678
Property & ICT,Operational Property,WGCF,Capital Expenditure,Payments to Contractor,GRANVILLE CONSTRUCTION & MAINTENANCE LTD,27/04/2012,2517
Property & ICT,Operational Property,WGCF,Capital Expenditure,Fixtures & Fittings & Equipment,SICO EUROPE LTD,20/04/2012,1485.2
Property & ICT,Operational Property,WGCF,Capital Expenditure,Fixtures & Fittings & Equipment,A3 MACHINES LIMITED,30/04/2012,4339
Property & ICT,Operational Property,WGCF,Capital Expenditure,Other Capital Expenditure,PEGASUS PLANNING GROUP LLP,25/04/2012,1112.6
Property & ICT,Operational Property,WGCF,Capital Expenditure,Other Capital Expenditure,PEGASUS PLANNING GROUP LLP,30/04/2012,1136.9
Property & ICT,Operational Property,WGCF,Capital Expenditure,Other Capital Expenditure,WEIGHMANS,24/04/2012,1000
Property & ICT,Operational Property,WGCF,Capital Expenditure,Other Capital Expenditure,MILLS & REEVE LLP,26/04/2012,950
Property & ICT,Operational Property,WPCC,Capital Expenditure,Payments to Contractor,GRANVILLE CONSTRUCTION & MAINTENANCE LTD,16/04/2012,696
Property & ICT,Operational Property,WPJF,Capital Expenditure,Payments to Contractor,TELFORD BUILDING CONTRACTORS,17/04/2012,31460.4
Property & ICT,Operational Property,WPJF,Capital Expenditure,Payments to Contractor,VENESTA WASHROOM SYSTEMS LTD,16/04/2012,4596.9
Property & ICT,Operational Property,WPMB,Capital Expenditure,Payments to Contractor,GRANVILLE CONSTRUCTION & MAINTENANCE LTD,16/04/2012,720
Property & ICT,Operational Property,WPMB,Capital Expenditure,Payments to Contractor,GRANVILLE CONSTRUCTION & MAINTENANCE LTD,16/04/2012,995
Property & ICT,Operational Property,WPND,Capital Expenditure,Payments to Contractor,PP ELECTRICAL SERVICES,16/04/2012,570
Property & ICT,Operational Property,WPND,Capital Expenditure,Payments to Contractor,PP ELECTRICAL SERVICES,16/04/2012,627
Property & ICT,Operational Property,WPND,Capital Expenditure,Payments to Contractor,PP ELECTRICAL SERVICES,16/04/2012,704
Property & ICT,Operational Property,WPND,Capital Expenditure,Payments to Contractor,PP ELECTRICAL SERVICES,16/04/2012,3916
Property & ICT,Operational Property,WPND,Capital Expenditure,Payments to Contractor,TELFORD & WREKIN SERVICES LTD,16/04/2012,850
Property & ICT,Operational Property,WPND,Capital Expenditure,Site Investigation,MCPHILLIPS (WELLINGTON) LTD,18/04/2012,19047.21
Property & ICT,Operational Property,WPNE,Capital Expenditure,Payments to Contractor,GRANVILLE CONSTRUCTION & MAINTENANCE LTD,16/04/2012,2272
Property & ICT,Operational Property,WPNE,Capital Expenditure,Payments to Contractor,GRANVILLE CONSTRUCTION & MAINTENANCE LTD,16/04/2012,3715
Property & ICT,Operational Property,WPNE,Capital Expenditure,Payments to Contractor,GRANVILLE CONSTRUCTION & MAINTENANCE LTD,16/04/2012,2405.2
Property & ICT,Operational Property,WPNE,Capital Expenditure,Payments to Contractor,GRANVILLE CONSTRUCTION & MAINTENANCE LTD,16/04/2012,3607.8
Property & ICT,Operational Property,WPNE,Capital Expenditure,Payments to Contractor,NOBRIDGE LTD,16/04/2012,4175
Property & ICT,Operational Property,WPPR,Capital Expenditure,Payments to Contractor,MCKEAND SMITH & CO LTD,03/04/2012,-2855.31
Property & ICT,Operational Property,WPWB,Capital Expenditure,Payments to Contractor,PRYCE (BUILDERS) LTD,03/04/2012,-23716
Property & ICT,Operational Property,WPWL,Capital Expenditure,Building Regs & Planning Fees,ZEBRA ARCHITECTS,18/04/2012,2000
Property & ICT,Property & ICT,WCAN,Capital Expenditure,Payments to Contractor,JORDAN LEWIS ASSOCIATES LTD,26/04/2012,2610
Property & ICT,Property & ICT,WCAN,Capital Expenditure,Payments to Contractor,JORDAN LEWIS ASSOCIATES LTD,12/04/2012,1305
Property & ICT,Property & ICT,WCAR,Capital Expenditure,Payments to Contractor,JPCS LTD,20/04/2012,16167.56
Property & ICT,Property & ICT,WCAR,Capital Expenditure,Payments to Contractor,RMP SPECIALIST SERVICES LIMITED,05/04/2012,5533.2
Property & ICT,Property & ICT,WCAR,Capital Expenditure,Payments to Contractor,GROUND INVESTIGATION & PILING LTD,12/04/2012,810.5
Property & ICT,Property & ICT,WCAR,Capital Expenditure,Payments to Contractor,A HAND SERVICES LTD,12/04/2012,560
Property & ICT,Property & ICT,WCAR,Capital Expenditure,Payments to Contractor,BIRSE CIVILS LIMITED,05/04/2012,22244.67
Property & ICT,Town Centre Project,WCCA,Capital Expenditure,External Professional Fees,NLP - Nathaniel Lichfield & Partners,11/04/2012,3500
Property & ICT,Town Centre Project,WCCA,Capital Expenditure,External Professional Fees,MACE LTD,03/04/2012,18506.47
Property & ICT,Town Centre Project,WCCA,Capital Expenditure,External Professional Fees,MACE LTD,03/04/2012,59839.82
Property & ICT,Town Centre Project,WCCA,Capital Expenditure,External Professional Fees,GVA GRIMLEY LTD,16/04/2012,1139
Property & ICT,Town Centre Project,WCCA,Capital Expenditure,External Professional Fees,NLP - Nathaniel Lichfield & Partners,20/04/2012,2500
Property & ICT,Town Centre Project,WCCA,Capital Expenditure,External Professional Fees,GVA GRIMLEY LTD,16/04/2012,1306.5
Property & ICT,Town Centre Project,WCCA,Capital Expenditure,Payments to Contractor,PP ELECTRICAL SERVICES,26/04/2012,9493.03
Safeguarding (Adults & Children),Case Management & Children in Care,JMAB,Employees,Agency Supply Costs,AIR SOCIAL CARE,11/04/2012,1407.85
Safeguarding (Adults & Children),Case Management & Children in Care,JMAE,Supplies & Services,Other Services,FIRST BASE (CREATIVE THERAPIES) LTD,11/04/2012,1956
Safeguarding (Adults & Children),Case Management & Children in Care,JMAE,Supplies & Services,Other Services,PHOENIX PSYCHOLOGICAL SERVICES LTD,13/04/2012,2495.8
Safeguarding (Adults & Children),Case Management & Children in Care,JMAE,Supplies & Services,Other Services,PHOENIX PSYCHOLOGICAL SERVICES LTD,13/04/2012,2805
Safeguarding (Adults & Children),Case Management & Children in Care,JMAE,Supplies & Services,Other Services,PHOENIX PSYCHOLOGICAL SERVICES LTD,13/04/2012,705
Safeguarding (Adults & Children),Case Management & Children in Care,JMAE,Supplies & Services,Other Services,REDACTED PERSONAL INFORMATION,13/04/2012,1664.6
Safeguarding (Adults & Children),Case Management & Children in Care,JMAE,Supplies & Services,Other Services,LIVING SPRINGS FAMILY CENTRE,16/04/2012,14975
Safeguarding (Adults & Children),Case Management & Children in Care,JMAE,Third Party Payments,Social Care External Contact,LIVING SPRINGS FAMILY CENTRE,11/04/2012,6026.42
Safeguarding (Adults & Children),Case Management & Children in Care,JMAE,Third Party Payments,Social Care External Contact,LIVING SPRINGS FAMILY CENTRE,11/04/2012,700
Safeguarding (Adults & Children),Case Management & Children in Care,JMAE,Third Party Payments,Social Care External Contact,LIVING SPRINGS FAMILY CENTRE,11/04/2012,1295
Safeguarding (Adults & Children),Case Management & Children in Care,JMAE,Third Party Payments,Social Care External Contact,LIVING SPRINGS FAMILY CENTRE,11/04/2012,2339.78
Safeguarding (Adults & Children),Case Management & Children in Care,JMAE,Third Party Payments,Social Care External Contact,LIVING SPRINGS FAMILY CENTRE,11/04/2012,11022.45
Safeguarding (Adults & Children),Case Management & Children in Care,JMAH,Third Party Payments,Private Contractors,ALLIED HEALTHCARE GROUP LTD,13/04/2012,544.48
Safeguarding (Adults & Children),Early Intervention,GEAK,Premises-Related Expenditure,General Rents,ANDREW DIXON & CO,12/04/2012,833.33
Safeguarding (Adults & Children),Early Intervention,GEAK,Premises-Related Expenditure,General Rents,PARK LANE CENTRE,04/04/2012,8543.5
Safeguarding (Adults & Children),Early Intervention,GEAK,Premises-Related Expenditure,General Rents,PARK LANE CENTRE,04/04/2012,6871.5
Safeguarding (Adults & Children),Early Intervention,GEAK,Supplies & Services,Security Services,BUSINESS WATCH GUARDING LIMITED,12/04/2012,2556.84
Safeguarding (Adults & Children),Early Intervention,GEAK,Supplies & Services,Out of School Activities,TELFORD TRUST,10/04/2012,551.25
Safeguarding (Adults & Children),Early Intervention,GEAM,Employees,Childcare Provision,CHILDCARE SOS,16/04/2012,1135.95
Safeguarding (Adults & Children),Early Intervention,GEAM,Third Party Payments,Pre School Playgroups,CHILDCARE SOS,23/04/2012,1869.75
Safeguarding (Adults & Children),Early Intervention,GYAG,Supplies & Services,Other Services,LANYON BOWDLER,23/04/2012,500.91
Safeguarding (Adults & Children),Early Intervention,HCAA,Supplies & Services,Other Tuition Fees,STAFFORDSHIRE UNIVERSITY,17/04/2012,1700
Safeguarding (Adults & Children),Early Intervention,HCAD,Supplies & Services,Other Grants (Expenses),TELFORD & WREKIN C V S,23/04/2012,-8000
Safeguarding (Adults & Children),Early Intervention,JEAF,Premises-Related Expenditure,Swimming Pool Chemicals,SHROPSHIRE COMMUNITY HEALTH NHS TRUST,23/04/2012,5613
Safeguarding (Adults & Children),Early Intervention,JEAF,Supplies & Services,Consultants Fees,SHROPSHIRE COMMUNITY HEALTH NHS TRUST,23/04/2012,1688.96
Safeguarding (Adults & Children),Placements & Fostering,JPAD,Third Party Payments,External Foster Care Payments,INDEPENDENT CHILDCARE GROUP OF SCHOOLS L,05/04/2012,3856.95
Safeguarding (Adults & Children),Placements & Fostering,JPAD,Third Party Payments,External Foster Care Payments,INDEPENDENT CHILDCARE GROUP OF SCHOOLS L,05/04/2012,2657.01
Safeguarding (Adults & Children),Placements & Fostering,JPAD,Third Party Payments,External Foster Care Payments,HILLCREST CARE LTD,05/04/2012,2031.43
Safeguarding (Adults & Children),Placements & Fostering,JPAD,Third Party Payments,External Foster Care Payments,HILLCREST CARE LTD,05/04/2012,1870
Safeguarding (Adults & Children),Placements & Fostering,JPAD,Third Party Payments,External Foster Care Payments,FOSTER CARE ASSOCIATES LTD,05/04/2012,5247.06
Safeguarding (Adults & Children),Placements & Fostering,JPAD,Third Party Payments,External Foster Care Payments,FOSTER CARE ASSOCIATES LTD,05/04/2012,5502
Safeguarding (Adults & Children),Placements & Fostering,JPAD,Third Party Payments,External Foster Care Payments,HILLCREST CARE LTD,05/04/2012,2635
Safeguarding (Adults & Children),Placements & Fostering,JPAD,Third Party Payments,External Foster Care Payments,HILLCREST CARE LTD,05/04/2012,3631.43
Safeguarding (Adults & Children),Placements & Fostering,JPAD,Third Party Payments,External Foster Care Payments,HILLCREST CARE LTD,05/04/2012,3114.39
Safeguarding (Adults & Children),Placements & Fostering,JPAD,Third Party Payments,External Foster Care Payments,HILLCREST CARE LTD,05/04/2012,3114.39
Safeguarding (Adults & Children),Placements & Fostering,JPAD,Third Party Payments,External Foster Care Payments,HILLCREST CARE LTD,05/04/2012,3077.86
Safeguarding (Adults & Children),Placements & Fostering,JPAD,Third Party Payments,External Foster Care Payments,HILLCREST CARE LTD,05/04/2012,3631.43
Safeguarding (Adults & Children),Placements & Fostering,JPAD,Third Party Payments,External Foster Care Payments,HILLCREST CARE LTD,05/04/2012,2767.86
Safeguarding (Adults & Children),Placements & Fostering,JPAD,Third Party Payments,External Foster Care Payments,HILLCREST CARE LTD,05/04/2012,3450.3
Safeguarding (Adults & Children),Placements & Fostering,JPAD,Third Party Payments,External Foster Care Payments,HILLCREST CARE LTD,05/04/2012,3210.71
Safeguarding (Adults & Children),Placements & Fostering,JPAD,Third Party Payments,External Foster Care Payments,HILLCREST CARE LTD,05/04/2012,3344.68
Safeguarding (Adults & Children),Placements & Fostering,JPAD,Third Party Payments,External Foster Care Payments,HILLCREST CARE LTD,05/04/2012,3077.86
Safeguarding (Adults & Children),Placements & Fostering,JPAD,Third Party Payments,External Foster Care Payments,HILLCREST CARE LTD,05/04/2012,3244.33
Safeguarding (Adults & Children),Placements & Fostering,JPAD,Third Party Payments,External Foster Care Payments,HILLCREST CARE LTD,05/04/2012,3344.68
Safeguarding (Adults & Children),Placements & Fostering,JPAD,Third Party Payments,External Foster Care Payments,HILLCREST CARE LTD,05/04/2012,3346.36
Safeguarding (Adults & Children),Placements & Fostering,JPAD,Third Party Payments,External Foster Care Payments,FOSTER CARE ASSOCIATES LIMITED,05/04/2012,1928.4
Safeguarding (Adults & Children),Placements & Fostering,JPAD,Third Party Payments,External Foster Care Payments,RUGELEY HORIZON PRIORY,05/04/2012,3609.29
Safeguarding (Adults & Children),Placements & Fostering,JPAD,Third Party Payments,External Foster Care Payments,SWIIS FOSTER CARE LTD,05/04/2012,895
Safeguarding (Adults & Children),Placements & Fostering,JPAD,Third Party Payments,External Foster Care Payments,HILLCREST CARE LTD,05/04/2012,3277.76
Safeguarding (Adults & Children),Placements & Fostering,JPAD,Third Party Payments,External Foster Care Payments,HILLCREST CARE LTD,05/04/2012,2635
Safeguarding (Adults & Children),Placements & Fostering,JPAD,Third Party Payments,External Foster Care Payments,HILLCREST CARE LTD,05/04/2012,2958.68
Safeguarding (Adults & Children),Placements & Fostering,JPAD,Third Party Payments,External Foster Care Payments,THE ADOLESCENT & CHILDRENS TRUST,11/04/2012,2915.55
Safeguarding (Adults & Children),Placements & Fostering,JPAD,Third Party Payments,External Foster Care Payments,FREEDOM FOSTERING,25/04/2012,-2514.28
Safeguarding (Adults & Children),Placements & Fostering,JPAD,Third Party Payments,External Foster Care Payments,FOSTERING PRIORY,19/04/2012,3492.86
Safeguarding (Adults & Children),Placements & Fostering,JPAD,Third Party Payments,External Foster Care Payments,HILLCREST CARE LTD,05/04/2012,3244.33
Safeguarding (Adults & Children),Placements & Fostering,JPAD,Third Party Payments,External Foster Care Payments,HILLCREST CARE LTD,05/04/2012,3050.18
Safeguarding (Adults & Children),Placements & Fostering,JPAD,Third Party Payments,External Foster Care Payments,HILLCREST CARE LTD,05/04/2012,2932.6
Safeguarding (Adults & Children),Placements & Fostering,JPAD,Third Party Payments,External Foster Care Payments,HILLCREST CARE LTD,12/04/2012,3450.3
Safeguarding (Adults & Children),Placements & Fostering,JPAD,Third Party Payments,External Foster Care Payments,NATIONAL FOSTERING AGENCY,12/04/2012,1290.77
Safeguarding (Adults & Children),Placements & Fostering,JPAD,Third Party Payments,External Foster Care Payments,HILLCREST CARE LTD,12/04/2012,3344.68
Safeguarding (Adults & Children),Placements & Fostering,JPAD,Third Party Payments,External Foster Care Payments,HILLCREST CARE LTD,12/04/2012,2767.86
Safeguarding (Adults & Children),Placements & Fostering,JPAD,Third Party Payments,External Foster Care Payments,FOSTER CARE ASSOCIATES LTD,03/04/2012,-3445.65
Safeguarding (Adults & Children),Placements & Fostering,JPAD,Third Party Payments,External Foster Care Payments,RED KITE FOSTERING,12/04/2012,2708.57
Safeguarding (Adults & Children),Placements & Fostering,JPAD,Third Party Payments,External Foster Care Payments,INDEPENDENT CHILDCARE GROUP OF SCHOOLS L,12/04/2012,4337.32
Safeguarding (Adults & Children),Placements & Fostering,JPAD,Third Party Payments,External Foster Care Payments,HILLCREST CARE LTD,12/04/2012,3344.68
Safeguarding (Adults & Children),Placements & Fostering,JPAD,Third Party Payments,External Foster Care Payments,HILLCREST CARE LTD,12/04/2012,3277.81
Safeguarding (Adults & Children),Placements & Fostering,JPAD,Third Party Payments,External Foster Care Payments,HILLCREST CARE LTD,12/04/2012,3520.71
Safeguarding (Adults & Children),Placements & Fostering,JPAD,Third Party Payments,External Foster Care Payments,THE ADOLESCENT & CHILDRENS TRUST,12/04/2012,2852
Safeguarding (Adults & Children),Placements & Fostering,JPAD,Third Party Payments,External Foster Care Payments,FOSTER CARE ASSOCIATES LTD,24/04/2012,3445.65
Safeguarding (Adults & Children),Placements & Fostering,JPAD,Third Party Payments,External Foster Care Payments,FOSTER CARE ASSOCIATES LTD,24/04/2012,3537.1
Safeguarding (Adults & Children),Placements & Fostering,JPAD,Third Party Payments,External Foster Care Payments,SWIIS FOSTER CARE LTD,27/04/2012,895
Safeguarding (Adults & Children),Placements & Fostering,JPAD,Third Party Payments,Residential Expenditure,FOSTER CARE ASSOCIATES LTD,03/04/2012,-3537.1
Safeguarding (Adults & Children),Placements & Fostering,JPAF,Supplies & Services,Other Services,NSPCC REGISTERED CHARITY,11/04/2012,8000
Safeguarding (Adults & Children),Placements & Fostering,JPAM,Supplies & Services,Form F Assessments,SEFAT CONSULTANCY SERVICES,03/04/2012,-1057.59
Safeguarding (Adults & Children),Placements & Fostering,JPAM,Supplies & Services,Subscriptions,FOSTERING NETWORK,20/04/2012,1446.64
Safeguarding (Adults & Children),Placements & Fostering,JPAN,Third Party Payments,Residential Expenditure,CASTLE HOMES CARE LIMITED,05/04/2012,9930.25
Safeguarding (Adults & Children),Placements & Fostering,JPAN,Third Party Payments,Residential Expenditure,KEYS CHILDCARE LTD,16/04/2012,1700
Safeguarding (Adults & Children),Placements & Fostering,JPAN,Third Party Payments,Residential Expenditure,LIVING SPRINGS FAMILY CENTRE,03/04/2012,-14975
Safeguarding (Adults & Children),Placements & Fostering,JPAN,Third Party Payments,Residential Expenditure,ARAN HALL SCHOOL LTD,16/04/2012,-705.98
Safeguarding (Adults & Children),Placements & Fostering,JPAN,Third Party Payments,Residential Expenditure,ARAN HALL SCHOOL LTD,16/04/2012,-705.98
Safeguarding (Adults & Children),Placements & Fostering,JPAN,Third Party Payments,Residential Expenditure,ARAN HALL SCHOOL LTD,13/04/2012,19588.95
Safeguarding (Adults & Children),Placements & Fostering,JPAN,Third Party Payments,Residential Expenditure,ABC CARE LTD,13/04/2012,11980
Safeguarding (Adults & Children),Placements & Fostering,JPAN,Third Party Payments,Residential Expenditure,EXCEL CUSTODIAL & ESCORT SERVICES,20/04/2012,935.88
Safeguarding (Adults & Children),Placements & Fostering,JPAN,Third Party Payments,Residential Expenditure,SACCS CARE LTD,10/04/2012,20477.71
Safeguarding (Adults & Children),Placements & Fostering,JPAN,Third Party Payments,Residential Expenditure,Castlecare Cymru Limited,16/04/2012,10362
Safeguarding (Adults & Children),Placements & Fostering,JPAN,Third Party Payments,Agency Services,CRUCKTON HALL SCHOOL,13/04/2012,61050
Safeguarding (Adults & Children),Placements & Fostering,JPAN,Third Party Payments,Agency Services,CRUCKTON HALL SCHOOL,13/04/2012,61050
Safeguarding (Adults & Children),Safeguarding Advisory,JAAC,Employees,Contract Staff,BRANNAN ASSOCIATES LTD,15/04/2012,760.5
Safeguarding (Adults & Children),Safeguarding Advisory,JAAC,Employees,Training Expenses,NSPCC REGISTERED CHARITY,26/04/2012,636
Safeguarding (Adults & Children),Safeguarding Advisory,JAAC,Employees,Training Expenses,NSPCC REGISTERED CHARITY,26/04/2012,1658.32
Safeguarding (Adults & Children),Safeguarding Advisory,JAAE,Supplies & Services,Equipment - Purchase,ADT FIRE & SECURITY PLC,27/04/2012,890
Safeguarding (Adults & Children),Safeguarding Advisory,JAAG,Supplies & Services,Supportive Lodgings,THEO LANGSTON,10/04/2012,1900
School Improvement,School Improvement,KHAB,Supplies & Services,Equipment - Purchase,AT BROWN (COACHES) LTD,12/04/2012,1404
School Improvement,School Improvement Primary,KSAP,Employees,Training Expenses,TRIBAL EDUCATION,18/04/2012,650
School Improvement,School Improvement Secondary,KSAC,Employees,Training Expenses,TELFORD COLLEGE OF ARTS & TECHNOLOGY,30/04/2012,47998
School Improvement,School Improvement Secondary,KSAC,Supplies & Services,Theft / Vandalism Insurance Pr,A T Computers Ltd,20/04/2012,2200
School Improvement,School Improvement Secondary,KSAC,Third Party Payments,Private Contractors,THE EDUCATION DEVELOPMENT SERVICE LTD,17/04/2012,8000
School Improvement,School Improvement Secondary,KSAC,Third Party Payments,Private Contractors,NACRO,17/04/2012,5000
School Improvement,School Improvement Secondary,WKAD,Capital Expenditure,Computer Hardware,PHOENIX SOFTWARE LTD,04/04/2012,5375
School Improvement,School Improvement Secondary,WKAK,Capital Expenditure,Computer Hardware,SHROPSHIRE COUNCIL,25/04/2012,16864.15
School Improvement,School Improvement Secondary,WKAT,Capital Expenditure,Computer Hardware,SPECIALIST COMPUTERS CENTRES PLC,13/04/2012,1770
,,,,,,," 8,671,540.73 "
